Workbook

Sheet Cover Page
J1: State of New Jersey
J2: Local Government Services
A4: =INDEX(muni!A1:A587,K5,1) -> 1346 Shrewsbury Township - County of Monmouth | B4: =ROW() -> 4 | D4: =K4 -> 2017 | H4: ="Attached is the User Friendly budget to this email. I, "&J18&" "&L18&" -Chief Financial Officer of "&A4&", Certify that all information included in this email is accurate." -> Attached is the User Friendly budget to this email. I, Suzanne Veitengruber -Chief Financial Officer of 1346 Shrewsbury Township - County of Monmouth, Certify that all information included in this email is accurate. | I4: ="Attached is the User Friendly budget to this email. I, "&K18&" "&M18&" -Chief Financial Officer of "&B4&", Certify that all information included in this email is accurate." -> Attached is the User Friendly budget to this email. I, M. -Chief Financial Officer of 4, Certify that all information included in this email is accurate. | J4: Year: | K4: 2017 | L4: Municipal User Friendly Budget
A5: =MID(CELL("filename",A5),FIND("]",CELL("filename",A5))+1,256) -> Cover Page | B5: =ROW() -> 5 | C5: =K6 -> 1346 | D5: =K4 -> 2017 | E5: ufb | F5: header | G5: file | H5: ="mailto:ufb.lgs@dca.nj.gov?subject="&N6&"&body= "&J18&" "&L18&" - CFO, Certify that all information in this email is accurate.%0A%0AAttached "&N6&"." -> mailto:ufb.lgs@dca.nj.gov?subject=1346_fba_2017.xlsm &body= Suzanne Veitengruber - CFO, Certify that all information in this email is accurate.%0A%0AAttached 1346_fba_2017.xlsm . | I5: ="mailto:ufb.lgs@dca.nj.gov?subject="&n6&"&body= "&K18&" "&M18&" - CFO, Certify that all information in this email is accurate.%0A%0AAttached "&n6&"." | J5: MUNICIPALITY: | K5: 381 | Q5: 2
A6: Cover Page | B6: =ROW() -> 6 | C6: =K6 -> 1346 | D6: =K4 -> 2017 | E6: ufb | F6: header | G6: muni_code | H6: =M38 -> 00:00:00 | I6: =J18&" "&L18&" - CFO, The attached UFB, File "&N6&", has been received by the Division Local Government Services. Thank you for your submission." -> Suzanne Veitengruber - CFO, The attached UFB, File 1346_fba_2017.xlsm , has been received by the Division Local Government Services. Thank you for your submission. | J6: Municode: | K6: =INDEX(muni!B1:B589,K5,1) -> 1346 | M6: Filename: | N6: =IF(Q5=1,K6&"_fbi_"&D6&".xlsm ",K6&"_fba_"&D6&".xlsm ") -> 1346_fba_2017.xlsm
A7: Cover Page | B7: =ROW() -> 7 | C7: =K6 -> 1346 | D7: =K4 -> 2017 | E7: ufb | F7: header | G7: website | H7: =M38 -> 00:00:00 | I7: =P29&" - CFO, Please be advised that you request for approval for and Insertion of an Special Item of Revenue (Chapter 159) Resolution or Change of Title and Text resolution was denied by the Director of Local Government Services for the following reason: " -> - CFO, Please be advised that you request for approval for and Insertion of an Special Item of Revenue (Chapter 159) Resolution or Change of Title and Text resolution was denied by the Director of Local Government Services for the following reason: | K7: Website: | L7: www.townshipofshrewsbury.com
A8: Cover Page | B8: =ROW() -> 8 | C8: =K6 -> 1346 | D8: =K4 -> 2017 | E8: ufb | F8: header | G8: phone | H8: =M38 -> 00:00:00 | I8: =" If you have any questions please contact Jorge F Carmona at jorge.carmona@dca.state.nj.us or (609) 292-1430 Jorge F Carmona Supervising Municipal Finance Auditor NJ Division of Local Government Services (609) 292-1430" -> If you have any questions please contact Jorge F Carmona at jorge.carmona@dca.state.nj.us or (609) 292-1430 Jorge F Carmona Supervising Municipal Finance Auditor NJ Division of Local Government Services (609) 292-1430 | K8: Phone Number: | M8: 732-542-0572
A9: Cover Page | B9: =ROW() -> 9 | C9: =K6 -> 1346 | D9: =K4 -> 2017 | E9: ufb | F9: header | G9: address1 | H9: =M38 -> 00:00:00 | I9: =" If you have any questions please contact Jorge F Carmona at jorge.carmona@dca.state.nj.us or (609) 292-1430 Christina Zapicchi Assistant Director NJ Division of Local Government Services (609) 633-3712" -> If you have any questions please contact Jorge F Carmona at jorge.carmona@dca.state.nj.us or (609) 292-1430 Christina Zapicchi Assistant Director NJ Division of Local Government Services (609) 633-3712 | K9: Mailing Address: | M9: 1979 Crawford Street
A10: Cover Page | B10: =ROW() -> 10 | C10: =K6 -> 1346 | D10: =K4 -> 2017 | E10: ufb | F10: header | G10: address2 | H10: =M38 -> 00:00:00 | I10: =" __ Duplicate __ Doesn’t qualify as insertion of Special Item of Revenue __ Additional supporting documentation needed " -> __ Duplicate __ Doesn’t qualify as insertion of Special Item of Revenue __ Additional supporting documentation needed
A11: Cover Page | B11: =ROW() -> 11 | C11: =K6 -> 1346 | D11: =K4 -> 2017 | E11: ufb | F11: header | G11: address3 | H11: =M38 -> 00:00:00 | I11: =I6&I8 -> Suzanne Veitengruber - CFO, The attached UFB, File 1346_fba_2017.xlsm , has been received by the Division Local Government Services. Thank you for your submission. If you have any questions please contact Jorge F Carmona at jorge.carmona@dca.state.nj.us or (609) 292-1430 Jorge F Carmona Supervising Municipal Finance Auditor NJ Division of Local Government Services (609) 292-1430 | J11: =HYPERLINK(H5,"Email the UFB if not using Outlook") -> Email the UFB if not using Outlook | L11: Municipality: | M11: Shrewsbury Township | N11: State: | O11: NJ | P11: Zip: | Q11: 07724
A12: Cover Page | B12: =ROW() -> 12 | C12: =K6 -> 1346 | D12: =K4 -> 2017 | E12: ufb | F12: officers | H12: =M38 -> 00:00:00 | I12: =I6&I9 -> Suzanne Veitengruber - CFO, The attached UFB, File 1346_fba_2017.xlsm , has been received by the Division Local Government Services. Thank you for your submission. If you have any questions please contact Jorge F Carmona at jorge.carmona@dca.state.nj.us or (609) 292-1430 Christina Zapicchi Assistant Director NJ Division of Local Government Services (609) 633-3712 | K12: Mayor
A13: Cover Page | B13: =ROW() -> 13 | C13: =K6 -> 1346 | D13: =K4 -> 2017 | E13: ufb | F13: officers | H13: =M38 -> 00:00:00 | I13: =I7&I10&I8 -> - CFO, Please be advised that you request for approval for and Insertion of an Special Item of Revenue (Chapter 159) Resolution or Change of Title and Text resolution was denied by the Director of Local Government Services for the following reason: __ Duplicate __ Doesn’t qualify as insertion of Special Item of Revenue __ Additional supporting documentation needed If you have any questions please contact Jorge F Carmona at jorge.carmona@dca.state.nj.us or (609) 292-1430 Jorge F Carmona Supervising Municipal Finance Auditor NJ Division of Local Government Services (609) 292-1430 | J13: First Name | K13: Middle Name | L13: Last Name | M13: Term Expires | N13: Business Email
A14: Cover Page | B14: =ROW() -> 14 | C14: =K6 -> 1346 | D14: =K4 -> 2017 | E14: ufb | F14: officers | G14: mayor | H14: =M38 -> 00:00:00 | I14: =I7&I10&I9 -> - CFO, Please be advised that you request for approval for and Insertion of an Special Item of Revenue (Chapter 159) Resolution or Change of Title and Text resolution was denied by the Director of Local Government Services for the following reason: __ Duplicate __ Doesn’t qualify as insertion of Special Item of Revenue __ Additional supporting documentation needed If you have any questions please contact Jorge F Carmona at jorge.carmona@dca.state.nj.us or (609) 292-1430 Christina Zapicchi Assistant Director NJ Division of Local Government Services (609) 633-3712 | J14: Edward | K14: P. | L14: Nolan | M14: 2018-12-31 | N14: mayornolan@comcast.net
A15: Cover Page | B15: =ROW() -> 15 | C15: =K6 -> 1346 | D15: =K4 -> 2017 | E15: ufb | F15: officers | H15: =M38 -> 00:00:00 | I15: 1 | K15: Chief Administrative Officer
A16: Cover Page | B16: =ROW() -> 16 | C16: =K6 -> 1346 | D16: =K4 -> 2017 | E16: ufb | F16: officers | G16: cao | H16: =M38 -> 00:00:00
A17: Cover Page | B17: =ROW() -> 17 | C17: =K6 -> 1346 | D17: =K4 -> 2017 | E17: ufb | F17: officers | H17: =M38 -> 00:00:00 | K17: Chief Financial Officer
A18: Cover Page | B18: =ROW() -> 18 | C18: =K6 -> 1346 | D18: =K4 -> 2017 | E18: ufb | F18: officers | G18: cfo | H18: =M38 -> 00:00:00 | J18: Suzanne | K18: M. | L18: Veitengruber | N18: shrewsburytownship@comcast.net
A19: Cover Page | B19: =ROW() -> 19 | C19: =K6 -> 1346 | D19: =K4 -> 2017 | E19: ufb | F19: officers | H19: =M38 -> 00:00:00 | K19: Municipal Clerk
A20: Cover Page | B20: =ROW() -> 20 | C20: =K6 -> 1346 | D20: =K4 -> 2017 | E20: ufb | F20: officers | G20: mc | H20: =M38 -> 00:00:00 | J20: Teri | L20: Giercyk | N20: tgiercyk@townshipofshrewsbury.com
A21: Cover Page | B21: =ROW() -> 21 | C21: =K6 -> 1346 | D21: =K4 -> 2017 | E21: ufb | F21: officers | H21: =M38 -> 00:00:00 | K21: Registered Municipal Accountant
A22: Cover Page | B22: =ROW() -> 22 | C22: =K6 -> 1346 | D22: =K4 -> 2017 | E22: ufb | F22: officers | G22: mc | H22: =M38 -> 00:00:00 | J22: Charles | K22: J. | L22: Fallon | N22: chuckfallon@falloncpa.com
A23: Cover Page | B23: =ROW() -> 23 | C23: =K6 -> 1346 | D23: =K4 -> 2017 | E23: ufb | F23: officers | H23: =M38 -> 00:00:00 | K23: Governing Body Members
A24: Cover Page | B24: =ROW() -> 24 | C24: =K6 -> 1346 | D24: =K4 -> 2017 | E24: ufb | F24: officers | H24: =M38 -> 00:00:00 | J24: First Name | K24: Middle Name | L24: Last Name | M24: Term Expires | N24: Business Email
A25: Cover Page | B25: =ROW() -> 25 | C25: =K6 -> 1346 | D25: =K4 -> 2017 | E25: ufb | F25: officers | G25: board1 | H25: =M38 -> 00:00:00 | J25: Glenwood | K25: J. | L25: Puhak | M25: 2019-12-31 | N25: depmayorpuhak@comcast.net
A26: Cover Page | B26: =ROW() -> 26 | C26: =K6 -> 1346 | D26: =K4 -> 2017 | E26: ufb | F26: officers | G26: board2 | H26: =M38 -> 00:00:00 | J26: Maryellen | L26: Mcnama-Bailly | M26: 2107-12-31 | N26: committeememberbailly@comcast.net
A27: Cover Page | B27: =ROW() -> 27 | C27: =K6 -> 1346 | D27: =K4 -> 2017 | E27: ufb | F27: officers | G27: board3 | H27: =M38 -> 00:00:00
A28: Cover Page | B28: =ROW() -> 28 | C28: =K6 -> 1346 | D28: =K4 -> 2017 | E28: ufb | F28: officers | G28: board4 | H28: =M38 -> 00:00:00
A29: Cover Page | B29: =ROW() -> 29 | C29: =K6 -> 1346 | D29: =K4 -> 2017 | E29: ufb | F29: officers | G29: board5 | H29: =M38 -> 00:00:00
A30: Cover Page | B30: =ROW() -> 30 | C30: =K6 -> 1346 | D30: =K4 -> 2017 | E30: ufb | F30: officers | G30: board6 | H30: =M38 -> 00:00:00
A31: Cover Page | B31: =ROW() -> 31 | C31: =K6 -> 1346 | D31: =K4 -> 2017 | E31: ufb | F31: officers | G31: board7 | H31: =M38 -> 00:00:00
A32: Cover Page | B32: =ROW() -> 32 | C32: =K6 -> 1346 | D32: =K4 -> 2017 | E32: ufb | F32: officers | G32: board8 | H32: =M38 -> 00:00:00
A33: Cover Page | B33: =ROW() -> 33 | C33: =K6 -> 1346 | D33: =K4 -> 2017 | E33: ufb | F33: officers | G33: board9 | H33: =M38 -> 00:00:00
A34: Cover Page | B34: =ROW() -> 34 | C34: =K6 -> 1346 | D34: =K4 -> 2017 | E34: ufb | F34: officers | G34: board10 | H34: =M38 -> 00:00:00
A35: Cover Page | B35: =ROW() -> 35 | C35: =K6 -> 1346 | D35: =K4 -> 2017 | E35: ufb | F35: officers | G35: board11 | H35: =M38 -> 00:00:00
D36: =K4 -> 2017 | H36: =M38 -> 00:00:00
A37: =MID(CELL("filename",A26),FIND("]",CELL("filename",A26))+1,256) -> Cover Page | B37: =ROW() -> 37 | C37: =K6 -> 1346 | D37: =K4 -> 2017 | E37: ufb | F37: file | G37: web | H37: =M38 -> 00:00:00 | I37: ="s:\LGS Docs\a_1budget\"&A4&"\"&D4&"\ufb\"&N6 -> s:\LGS Docs\a_1budget\1346 Shrewsbury Township - County of Monmouth\2017\ufb\1346_fba_2017.xlsm
A38: =MID(CELL("filename",A26),FIND("]",CELL("filename",A26))+1,256) -> Cover Page | B38: =ROW() -> 38 | C38: =K6 -> 1346 | D38: =K4 -> 2017 | E38: ufb | F38: file | G38: file | H38: =M38 -> 00:00:00 | I38: ="s:\LGS Docs\a_1budget_files\"&D4&"\ufb\"&N6 -> s:\LGS Docs\a_1budget_files\2017\ufb\1346_fba_2017.xlsm | L38: Date Acknowledged:
A39: =MID(CELL("filename",A27),FIND("]",CELL("filename",A27))+1,256) -> Cover Page | B39: =ROW() -> 39 | C39: =K7 -> Website: | D39: =K4 -> 2017 | E39: ufb | F39: file | G39: ack | H39: =M38 -> 00:00:00 | L39: Acknowledged by:
A40: =MID(CELL("filename",A27),FIND("]",CELL("filename",A27))+1,256) -> Cover Page | B40: =ROW() -> 40 | C40: =K6 -> 1346 | D40: =K4 -> 2017 | E40: ufb | F40: meta | G40: file | H40: =M38 -> 00:00:00 | I40: =N6 -> 1346_fba_2017.xlsm | J40: =K6 -> 1346 | K40: =A4 -> 1346 Shrewsbury Township - County of Monmouth | L40: =L7 -> www.townshipofshrewsbury.com | M40: =M8 -> 732-542-0572 | N40: =M9 -> 1979 Crawford Street | O40: =M10 -> 0 | Q40: =O11 -> NJ | R40: =Q11 -> 07724

Sheet Sheet1 (hidden)
J5: The following questions apply to the Mayor:
J6: a. Is the Mayor Directly Elected ___ or Selected from governing body members ___
J7: a. Is the Mayor included as a Council/Committee member? Yes ___ No ___
J8: a. Does the Mayor vote regularly ___ or only as a tie-breaker ___
J9: a. Does the Mayor have veto power over ordinances Yes ___ No ___
J10: a. How many years is the mayor’s term? ______
J11: 1. The following questions apply to the Governing Body:
J12: a. Does the municipality have a Council President: Yes ___ No ___
J13: a. Number of Council Members (including Council President) or Committee Members ____________
J14: How many years are the members’ terms?
J15: a. Are the terms: Staggered ____ Concurrent ____
J16: a. Council can override the Mayor’s veto by a 2/3 vote: Yes ___ No ___
J17: 1. Who is the chief executive in the municipality?
J18: Municipal Manager ______
J19: 1. Does your municipality have wards? Yes ___ No ___ If yes, how many? ______
J20: 1. Municipal elections are: Partisan ____ or Non-Partisan ____
J21: 1. Appointments:
J22: The Mayor makes the following unilateral appointments:
J23: The Mayor makes the following appointments with the advice and consent of the governing body
J24: The governing body makes the following appointments:
J25: The Chief Executive (an official other than the Mayor ) makes the following appointments:
J26: 1. How many departments are in the municipality (not including municipal clerk or tax assessor)? ________
J27: Please list:
J28: 1. Has your municipality adopted an administrative code? Yes ___ No ___
J29: 1. Is your municipality subject to the provisions of Title 11A (Civil Service)? Yes ___ No ___

Sheet UFB-1 Tax Impact
A1: =MID(CELL("filename",A2),FIND("]",CELL("filename",A2))+1,256) -> UFB-1 Tax Impact | B1: =ROW() -> 1 | C1: ='Cover Page'!K6 -> 1346 | D1: ='Cover Page'!K4 -> 2017 | E1: ufb | F1: ptb | H1: ='Cover Page'!M38 -> 00:00:00 | J1: USER FRIENDLY BUDGET SECTION - PROPERTY TAX BREAKDOWN
A2: =MID(CELL("filename",A2),FIND("]",CELL("filename",A2))+1,256) -> UFB-1 Tax Impact | B2: =ROW() -> 2 | C2: ='Cover Page'!K6 -> 1346 | D2: ='Cover Page'!K4 -> 2017 | E2: ufb | F2: ptb | H2: ='Cover Page'!M38 -> 00:00:00
A3: =MID(CELL("filename",A3),FIND("]",CELL("filename",A3))+1,256) -> UFB-1 Tax Impact | B3: =ROW() -> 3 | C3: ='Cover Page'!K6 -> 1346 | D3: ='Cover Page'!K4 -> 2017 | E3: ufb | F3: ptb | H3: ='Cover Page'!M38 -> 00:00:00 | J3: ='Cover Page'!K4-1&" Calendar Year Property Tax Levies - ALL entities levying property taxes" -> 2016 Calendar Year Property Tax Levies - ALL entities levying property taxes | Q3: ="Current Year "&'Cover Page'!K4&" Budget" -> Current Year 2017 Budget
A4: UFB-1 Tax Impact | B4: =ROW() -> 4 | C4: ='Cover Page'!K6 -> 1346 | D4: ='Cover Page'!K4 -> 2017 | E4: ufb | F4: ptb | H4: ='Cover Page'!M38 -> 00:00:00 | L4: Calendar Year | M4: Calendar Year | N4: % of | O4: Avg Residential | Q4: Taxes | R4: Actual/Estimated | S4: Tax Levy
A5: UFB-1 Tax Impact | B5: =ROW() -> 5 | C5: ='Cover Page'!K6 -> 1346 | D5: ='Cover Page'!K4 -> 2017 | E5: ufb | F5: ptb | H5: ='Cover Page'!M38 -> 00:00:00 | L5: Tax Rate | M5: Tax Levy | N5: Total Levy | O5: Taxpayer Impact
A6: UFB-1 Tax Impact | B6: =ROW() -> 6 | C6: ='Cover Page'!K6 -> 1346 | D6: ='Cover Page'!K4 -> 2017 | E6: ufb | F6: ptb | G6: mpt | H6: ='Cover Page'!M38 -> 00:00:00 | I6: mpt | K6: Municipal Purpose Tax | L6: 1.453 | M6: $849,231.00 | N6: =M6/M19 -> 52.14% | O6: =(+M$23/100)*L6 -> $2,330.12 | Q6: Municipal Purpose Tax | R6: ACTUAL | S6: $780,487.43
A7: UFB-1 Tax Impact | B7: =ROW() -> 7 | C7: ='Cover Page'!K6 -> 1346 | D7: ='Cover Page'!K4 -> 2017 | E7: ufb | F7: ptb | G7: ml | H7: ='Cover Page'!M38 -> 00:00:00 | I7: ml | K7: Municipal Library | N7: =M7/M19 -> 0.00% | O7: $0.00 | Q7: Municipal Library
A8: UFB-1 Tax Impact | B8: =ROW() -> 8 | C8: ='Cover Page'!K6 -> 1346 | D8: ='Cover Page'!K4 -> 2017 | E8: ufb | F8: ptb | G8: mop | H8: ='Cover Page'!M38 -> 00:00:00 | I8: mop | K8: Municipal Open Space | N8: =M8/M19 -> 0.00% | O8: $0.00 | Q8: Municipal Open Space
A9: UFB-1 Tax Impact | B9: =ROW() -> 9 | C9: ='Cover Page'!K6 -> 1346 | D9: ='Cover Page'!K4 -> 2017 | E9: ufb | F9: ptb | G9: fdatl | H9: ='Cover Page'!M38 -> 00:00:00 | I9: fdatl | K9: Fire Districts (avg. rate/total levies) | N9: =M9/M19 -> 0.00% | O9: $0.00 | Q9: Fire Districts (total levies)
A10: =MID(CELL("filename",A10),FIND("]",CELL("filename",A10))+1,256) -> UFB-1 Tax Impact | B10: =ROW() -> 10 | C10: ='Cover Page'!K6 -> 1346 | D10: ='Cover Page'!K4 -> 2017 | E10: ufb | F10: ptb | G10: osdtl | H10: ='Cover Page'!M38 -> 00:00:00 | I10: osdtl | K10: Other Special Districts (total levies) | N10: =M10/M19 -> 0.00% | O10: $0.00 | Q10: Other Special Districts (total levies)
A11: =MID(CELL("filename",A11),FIND("]",CELL("filename",A11))+1,256) -> UFB-1 Tax Impact | B11: =ROW() -> 11 | C11: ='Cover Page'!K6 -> 1346 | D11: ='Cover Page'!K4 -> 2017 | E11: ufb | F11: ptb | G11: lsd | H11: ='Cover Page'!M38 -> 00:00:00 | I11: lsd | K11: Local School District | L11: 0.583 | M11: $316,648.00 | N11: =M11/M19 -> 19.44% | O11: $934.94 | Q11: Local School District | R11: ESTIMATED | S11: $359,804.00
A12: =MID(CELL("filename",A12),FIND("]",CELL("filename",A12))+1,256) -> UFB-1 Tax Impact | B12: =ROW() -> 12 | C12: ='Cover Page'!K6 -> 1346 | D12: ='Cover Page'!K4 -> 2017 | E12: ufb | F12: ptb | G12: rsd | H12: ='Cover Page'!M38 -> 00:00:00 | I12: rsd | K12: Regional School District | L12: 0.629 | M12: $299,891.00 | N12: =M12/M19 -> 18.41% | O12: $1,008.70 | Q12: Regional School District | R12: ESTIMATED | S12: $257,852.00
A13: =MID(CELL("filename",A13),FIND("]",CELL("filename",A13))+1,256) -> UFB-1 Tax Impact | B13: =ROW() -> 13 | C13: ='Cover Page'!K6 -> 1346 | D13: ='Cover Page'!K4 -> 2017 | E13: ufb | F13: ptb | G13: cp | H13: ='Cover Page'!M38 -> 00:00:00 | I13: cp | K13: County Purposes | L13: 0.257 | M13: $142,369.78 | N13: =M13/M19 -> 8.74% | O13: $412.14 | Q13: County Purposes | R13: ESTIMATED | S13: $126,322.03
A14: UFB-1 Tax Impact | B14: =ROW() -> 14 | C14: ='Cover Page'!K6 -> 1346 | D14: ='Cover Page'!K4 -> 2017 | E14: ufb | F14: ptb | G14: cl | H14: ='Cover Page'!M38 -> 00:00:00 | I14: cl | K14: County Library | L14: 0.018 | M14: $9,558.40 | N14: =M14/M19 -> 0.59% | O14: $28.87 | Q14: County Library | R14: ESTIMATED | S14: $8,847.46
A15: UFB-1 Tax Impact | B15: =ROW() -> 15 | C15: ='Cover Page'!K6 -> 1346 | D15: ='Cover Page'!K4 -> 2017 | E15: ufb | F15: ptb | G15: cbh | H15: ='Cover Page'!M38 -> 00:00:00 | I15: cbh | K15: County Board of Health | L15: 0.005 | M15: $3,015.44 | N15: =M15/M19 -> 0.19% | O15: $8.02 | Q15: County Board of Health | R15: ESTIMATED | S15: $2,457.63
A16: UFB-1 Tax Impact | B16: =ROW() -> 16 | C16: ='Cover Page'!K6 -> 1346 | D16: ='Cover Page'!K4 -> 2017 | E16: ufb | F16: ptb | G16: cos | H16: ='Cover Page'!M38 -> 00:00:00 | I16: cos | K16: County Open Space | L16: 0.015 | M16: $8,049.17 | N16: =M16/M19 -> 0.49% | O16: $24.05 | Q16: County Open Space | R16: ESTIMATED | S16: $7,372.88
A17: UFB-1 Tax Impact | B17: =ROW() -> 17 | C17: ='Cover Page'!K6 -> 1346 | D17: ='Cover Page'!K4 -> 2017 | E17: ufb | F17: ptb | G17: octl | H17: ='Cover Page'!M38 -> 00:00:00 | I17: octl | K17: Other County Levies (total) | N17: =M17/M19 -> 0.00% | O17: $0.00 | Q17: Other County Levies (total)
A18: UFB-1 Tax Impact | B18: =ROW() -> 18 | C18: ='Cover Page'!K6 -> 1346 | D18: ='Cover Page'!K4 -> 2017 | E18: ufb | F18: ptb | H18: ='Cover Page'!M38 -> 00:00:00
A19: UFB-1 Tax Impact | B19: =ROW() -> 19 | C19: ='Cover Page'!K6 -> 1346 | D19: ='Cover Page'!K4 -> 2017 | E19: ufb | F19: ptb | G19: tbud | H19: ='Cover Page'!M38 -> 00:00:00 | I19: tbud | K19: ="Total (Calendar Year "&'Cover Page'!K4-1&" Budget)" -> Total (Calendar Year 2016 Budget) | L19: =SUM(L6:L17) -> 2.960 | M19: =SUM(M6:M17) -> $1,628,762.79 | N19: =SUM(N6:N17) -> 100.00% | O19: =SUM(O6:O17) -> $4,746.85 | Q19: Total ESTIMATED amount to be raised by taxes | S19: =SUM(S6:S17) -> $1,543,143.43
A20: UFB-1 Tax Impact | B20: =ROW() -> 20 | C20: ='Cover Page'!K6 -> 1346 | D20: ='Cover Page'!K4 -> 2017 | E20: ufb | F20: ptb | H20: ='Cover Page'!M38 -> 00:00:00
A21: UFB-1 Tax Impact | B21: =ROW() -> 21 | C21: ='Cover Page'!K6 -> 1346 | D21: ='Cover Page'!K4 -> 2017 | E21: ufb | F21: ptb | G21: ttv | H21: ='Cover Page'!M38 -> 00:00:00 | I21: raetl | K21: Total Taxable Valuation as of | L21: ="October 1, "&'Cover Page'!K4-1&" " -> October 1, 2016 | M21: $53,874,500.00 | Q21: Revenue Anticipated, Excluding Tax Levy | S21: 177,165.00
A22: UFB-1 Tax Impact | B22: =ROW() -> 22 | C22: ='Cover Page'!K6 -> 1346 | D22: ='Cover Page'!K4 -> 2017 | E22: ufb | F22: ptb | H22: ='Cover Page'!M38 -> 00:00:00 | I22: babrut | K22: (To be used to calculate the current year tax rate) | Q22: Budget Appropriations, before Reserve for Uncollected Taxes | S22: 942,221.00
A23: UFB-1 Tax Impact | B23: =ROW() -> 23 | C23: ='Cover Page'!K6 -> 1346 | D23: ='Cover Page'!K4 -> 2017 | E23: ufb | F23: ptb | G23: ars | H23: ='Cover Page'!M38 -> 00:00:00 | I23: totnmtl | K23: Current Year Average Residential Assessment | M23: $160,366.39 | Q23: Total Non-Municipal Tax Levy | S23: =SUM(S8:S17) -> $762,656.00
A24: UFB-1 Tax Impact | B24: =ROW() -> 24 | C24: ='Cover Page'!K6 -> 1346 | D24: ='Cover Page'!K4 -> 2017 | E24: ufb | F24: ptb | H24: ='Cover Page'!M38 -> 00:00:00 | I24: arbt | Q24: Amount to be Raised by Taxes - Before RUT | S24: =+S23+S22-S21 -> $1,527,712.00
A25: UFB-1 Tax Impact | B25: =ROW() -> 25 | C25: ='Cover Page'!K6 -> 1346 | D25: ='Cover Page'!K4 -> 2017 | E25: ufb | F25: ptb | H25: ='Cover Page'!M38 -> 00:00:00 | I25: rut | L25: Prior Year to Current Year Comparison | Q25: Reserve for Uncollected Taxes (RUT) | S25: =(+S24/S28)-S24 -> $15,431.43
A26: UFB-1 Tax Impact | B26: =ROW() -> 26 | C26: ='Cover Page'!K6 -> 1346 | D26: ='Cover Page'!K4 -> 2017 | E26: ufb | F26: ptb | H26: ='Cover Page'!M38 -> 00:00:00 | I26: tarbt | Q26: Total Amount to be Raised by Taxes | S26: =+S25+S24 -> $1,543,143.43
A27: UFB-1 Tax Impact | B27: =ROW() -> 27 | C27: ='Cover Page'!K6 -> 1346 | D27: ='Cover Page'!K4 -> 2017 | E27: ufb | F27: ptb | H27: ='Cover Page'!M38 -> 00:00:00 | M27: Comparison - Municipal Purposes Tax Rate
A28: UFB-1 Tax Impact | B28: =ROW() -> 28 | C28: ='Cover Page'!K6 -> 1346 | D28: ='Cover Page'!K4 -> 2017 | E28: ufb | F28: ptb | H28: ='Cover Page'!M38 -> 00:00:00 | I28: ptcrut | L28: Prior Year | M28: Current Year | N28: % Change (+/-) | Q28: % of Tax Collections used to Calculate RUT | S28: 99.00%
A29: UFB-1 Tax Impact | B29: =ROW() -> 29 | C29: ='Cover Page'!K6 -> 1346 | D29: ='Cover Page'!K4 -> 2017 | E29: ufb | F29: ptb | G29: cmptr | H29: ='Cover Page'!M38 -> 00:00:00 | L29: =L6 -> 1.453 | M29: =780487.43/(M21/100) -> 1.449 | N29: =(M29-L29)/L29 -> -0.29%
A30: UFB-1 Tax Impact | B30: =ROW() -> 30 | C30: ='Cover Page'!K6 -> 1346 | D30: ='Cover Page'!K4 -> 2017 | E30: ufb | F30: ptb | H30: ='Cover Page'!M38 -> 00:00:00 | I30: puac | Q30: If % used exceeds the actual collection % then | V30: 40A:4-41c(1) 3 yr avg
A31: UFB-1 Tax Impact | B31: =ROW() -> 31 | C31: ='Cover Page'!K6 -> 1346 | D31: ='Cover Page'!K4 -> 2017 | E31: ufb | F31: ptb | H31: ='Cover Page'!M38 -> 00:00:00 | I31: rseu | M31: Comparison - Municipal Purposes Tax Levy | Q31: reference the statutory exception used | V31: 40A:4-41c(2) Levy net of Appeals | W31: ACTUAL
A32: UFB-1 Tax Impact | B32: =ROW() -> 32 | C32: ='Cover Page'!K6 -> 1346 | D32: ='Cover Page'!K4 -> 2017 | E32: ufb | F32: ptb | H32: ='Cover Page'!M38 -> 00:00:00 | L32: Prior Year | M32: Current Year | N32: % Change (+/-) | O32: $ Change (+/-) | W32: ESTIMATED
A33: =MID(CELL("filename",A22),FIND("]",CELL("filename",A22))+1,256) -> UFB-1 Tax Impact | B33: =ROW() -> 33 | C33: ='Cover Page'!K6 -> 1346 | D33: ='Cover Page'!K4 -> 2017 | E33: ufb | F33: ptb | G33: cmptl | H33: ='Cover Page'!M38 -> 00:00:00 | L33: =M6 -> $849,231.00 | M33: =S6 -> $780,487.43 | N33: =(M33-L33)/L33 -> -8.09% | O33: =M33-L33 -> ($68,743.57) | Q33: Tax Collections - ACTUAL as of Prior Year
A34: =MID(CELL("filename",A22),FIND("]",CELL("filename",A22))+1,256) -> UFB-1 Tax Impact | B34: =ROW() -> 34 | C34: ='Cover Page'!K6 -> 1346 | D34: ='Cover Page'!K4 -> 2017 | E34: ufb | F34: ptb | H34: ='Cover Page'!M38 -> 00:00:00 | I34: ttrc | Q34: ="Total Tax Revenue, Collections CY "&'Cover Page'!K4-1 -> Total Tax Revenue, Collections CY 2016 | S34: 1,564,147.78
A35: UFB-1 Tax Impact | B35: =ROW() -> 35 | C35: ='Cover Page'!K6 -> 1346 | D35: ='Cover Page'!K4 -> 2017 | E35: ufb | F35: ptb | H35: ='Cover Page'!M38 -> 00:00:00 | I35: ttl | J35: Comparison - Impact on Avg. Residential Tax Payment (Municipal Purposes Only) | Q35: ="Total Tax Levy, CY "&'Cover Page'!K4-1 -> Total Tax Levy, CY 2016 | S35: 1,567,154.09
A36: UFB-1 Tax Impact | B36: =ROW() -> 36 | C36: ='Cover Page'!K6 -> 1346 | D36: ='Cover Page'!K4 -> 2017 | E36: ufb | F36: ptb | H36: ='Cover Page'!M38 -> 00:00:00 | I36: ptc | L36: Prior Year | M36: Current Year | N36: % Change (+/-) | O36: $ Change (+/-) | Q36: ="% of Taxes Collected, CY "&'Cover Page'!K4-1 -> % of Taxes Collected, CY 2016 | S36: =IF(S35>1,+S34/S35,0) -> 99.81%
A37: UFB-1 Tax Impact | B37: =ROW() -> 37 | C37: ='Cover Page'!K6 -> 1346 | D37: ='Cover Page'!K4 -> 2017 | E37: ufb | F37: ptb | G37: ciartp | H37: ='Cover Page'!M38 -> 00:00:00 | L37: =O6 -> $2,330.12 | M37: =(+M$23/100)*M29 -> $2,323.25 | N37: =(M37-L37)/L37 -> -0.29% | O37: =M37-L37 -> ($6.87)
A38: UFB-1 Tax Impact | B38: =ROW() -> 38 | C38: ='Cover Page'!K6 -> 1346 | D38: ='Cover Page'!K4 -> 2017 | E38: ufb | F38: ptb | H38: ='Cover Page'!M38 -> 00:00:00 | I38: dt | Q38: ="Delinquent Taxes - December 31, "&'Cover Page'!K4-1 -> Delinquent Taxes - December 31, 2016 | S38: $3,006.31
A39: UFB-1 Tax Impact | B39: =ROW() -> 39 | C39: ='Cover Page'!K6 -> 1346 | D39: ='Cover Page'!K4 -> 2017 | E39: ufb | F39: ptb | H39: ='Cover Page'!M38 -> 00:00:00 | O39: Sheet UFB-1

Sheet UFB-2 Revenue Summary
A1: =MID(CELL("filename",A2),FIND("]",CELL("filename",A2))+1,256) -> UFB-2 Revenue Summary | B1: =ROW() -> 1 | C1: ='Cover Page'!K6 -> 1346 | D1: ='Cover Page'!K4 -> 2017 | E1: ufb | F1: ars | H1: ='Cover Page'!M38 -> 00:00:00 | K1: USER FRIENDLY BUDGET SECTION - ANTICIPATED REVENUE SUMMARY (ALL OPERATING FUNDS)
A2: =MID(CELL("filename",A2),FIND("]",CELL("filename",A2))+1,256) -> UFB-2 Revenue Summary | B2: =ROW() -> 2 | C2: ='Cover Page'!K6 -> 1346 | D2: ='Cover Page'!K4 -> 2017 | E2: ufb | F2: ars | H2: ='Cover Page'!M38 -> 00:00:00
A3: =MID(CELL("filename",A3),FIND("]",CELL("filename",A3))+1,256) -> UFB-2 Revenue Summary | B3: =ROW() -> 3 | C3: ='Cover Page'!K6 -> 1346 | D3: ='Cover Page'!K4 -> 2017 | E3: ufb | F3: ars | H3: ='Cover Page'!M38 -> 00:00:00 | L3: % Difference Current vs. Prior Year | M3: $ Difference Current vs. Prior Year | O3: Total Realized Revenue (Prior Year) | Q3: Total Anticipated Revenue (Current Year) | R3: General | S3: Open Space
A4: UFB-2 Revenue Summary | B4: =ROW() -> 4 | C4: ='Cover Page'!K6 -> 1346 | D4: ='Cover Page'!K4 -> 2017 | E4: ufb | F4: ars | H4: ='Cover Page'!M38 -> 00:00:00 | J4: FCOA | R4: Budget | S4: Budget | T4: Utility | U4: Utility | V4: Utility | W4: Utility | X4: Utility | Y4: Utility
A5: UFB-2 Revenue Summary | B5: =ROW() -> 5 | C5: ='Cover Page'!K6 -> 1346 | D5: ='Cover Page'!K4 -> 2017 | E5: ufb | F5: ars | H5: ='Cover Page'!M38 -> 00:00:00
A6: UFB-2 Revenue Summary | B6: =ROW() -> 6 | C6: ='Cover Page'!K5 -> 381 | D6: ='Cover Page'!K4 -> 2017 | E6: ufb | F6: ars | G6: sav | H6: ='Cover Page'!M37 -> 00:00:00 | J6: 08 | K6: Surplus | L6: =M6/O6 -> 55.44% | M6: =(Q6-O6) -> $26,748.99 | O6: $48,251.01 | Q6: =SUM(R6:Y6) -> $75,000.00 | R6: $75,000.00
A7: UFB-2 Revenue Summary | B7: =ROW() -> 7 | C7: ='Cover Page'!K6 -> 1346 | D7: ='Cover Page'!K4 -> 2017 | E7: ufb | F7: ars | G7: lr | H7: ='Cover Page'!M38 -> 00:00:00 | J7: 08 | K7: Local Revenue | L7: =M7/O7 -> 14.21% | M7: =(Q7-O7) -> $1,595.00 | O7: $11,225.00 | Q7: =SUM(R7:Y7) -> $12,820.00 | R7: $12,820.00
A8: =MID(CELL("filename",A8),FIND("]",CELL("filename",A8))+1,256) -> UFB-2 Revenue Summary | B8: =ROW() -> 8 | C8: ='Cover Page'!K6 -> 1346 | D8: ='Cover Page'!K4 -> 2017 | E8: ufb | F8: ars | G8: stnoosa | H8: ='Cover Page'!M38 -> 00:00:00 | J8: 09 | K8: State Aid (without offsetting appropriation) | L8: =M8/O8 -> 0.00% | M8: =(Q8-O8) -> $0.00 | O8: $85,903.00 | Q8: =SUM(R8:Y8) -> $85,903.00 | R8: $85,903.00
A9: =MID(CELL("filename",A9),FIND("]",CELL("filename",A9))+1,256) -> UFB-2 Revenue Summary | B9: =ROW() -> 9 | C9: ='Cover Page'!K6 -> 1346 | D9: ='Cover Page'!K4 -> 2017 | E9: ufb | F9: ars | G9: uccf | H9: ='Cover Page'!M38 -> 00:00:00 | J9: 08 | K9: Uniform Construction Code Fees | L9: =M9/O9 ->  | M9: $0.00 | Q9: =SUM(R9:Y9) -> $0.00
A10: =MID(CELL("filename",A10),FIND("]",CELL("filename",A10))+1,256) -> UFB-2 Revenue Summary | B10: =ROW() -> 10 | C10: ='Cover Page'!K6 -> 1346 | D10: ='Cover Page'!K4 -> 2017 | E10: ufb | F10: ars | G10: cfo | H10: ='Cover Page'!M38 -> 00:00:00 | K10: Special Revenue Items w/ Prior Written Consent
A11: =MID(CELL("filename",A11),FIND("]",CELL("filename",A11))+1,256) -> UFB-2 Revenue Summary | B11: =ROW() -> 11 | C11: ='Cover Page'!K6 -> 1346 | D11: ='Cover Page'!K4 -> 2017 | E11: ufb | F11: ars | G11: ssa | H11: ='Cover Page'!M38 -> 00:00:00 | J11: 11 | K11: Shared Services Agreements | L11: =M11/O11 ->  | M11: $0.00 | Q11: =SUM(R11:Y11) -> $0.00
A12: UFB-2 Revenue Summary | B12: =ROW() -> 12 | C12: ='Cover Page'!K6 -> 1346 | D12: ='Cover Page'!K4 -> 2017 | E12: ufb | F12: ars | G12: arosa | H12: ='Cover Page'!M38 -> 00:00:00 | J12: 08 | K12: Additional Revenue Offset by Appropriations | L12: =M12/O12 -> -89.87% | M12: ($4,045.00) | O12: $4,501.00 | Q12: =SUM(R12:Y12) -> $456.00 | R12: $456.00
A13: UFB-2 Revenue Summary | B13: =ROW() -> 13 | C13: ='Cover Page'!K6 -> 1346 | D13: ='Cover Page'!K4 -> 2017 | E13: ufb | F13: ars | G13: pprg | H13: ='Cover Page'!M38 -> 00:00:00 | J13: 10 | K13: Public and Private Revenue | L13: =M13/O13 ->  | M13: $0.00 | Q13: =SUM(R13:Y13) -> $0.00
A14: UFB-2 Revenue Summary | B14: =ROW() -> 14 | C14: ='Cover Page'!K6 -> 1346 | D14: ='Cover Page'!K4 -> 2017 | E14: ufb | F14: ars | G14: osi | H14: ='Cover Page'!M38 -> 00:00:00 | J14: 08 | K14: Other Special Items | L14: =M14/O14 ->  | M14: $0.00 | Q14: =SUM(R14:Y14) -> $0.00
A15: UFB-2 Revenue Summary | B15: =ROW() -> 15 | C15: ='Cover Page'!K6 -> 1346 | D15: ='Cover Page'!K4 -> 2017 | E15: ufb | F15: ars | G15: rdt | H15: ='Cover Page'!M38 -> 00:00:00 | J15: 15 | K15: Receipts from Delinquent Taxes | L15: =M15/O15 -> 4.41% | M15: $126.90 | O15: $2,879.10 | Q15: =SUM(R15:Y15) -> $3,006.00 | R15: $3,006.00
A16: UFB-2 Revenue Summary | B16: =ROW() -> 16 | C16: ='Cover Page'!K6 -> 1346 | D16: ='Cover Page'!K4 -> 2017 | E16: ufb | F16: ars | H16: ='Cover Page'!M38 -> 00:00:00 | K16: Amount to be raised by taxation
A17: UFB-2 Revenue Summary | B17: =ROW() -> 17 | C17: ='Cover Page'!K6 -> 1346 | D17: ='Cover Page'!K4 -> 2017 | E17: ufb | F17: ars | G17: ltmp | H17: ='Cover Page'!M38 -> 00:00:00 | J17: 07 | K17: Local Tax for Municipal Purposes | L17: =M17/O17 -> 1.46% | M17: $11,216.95 | O17: $769,262.40 | Q17: =SUM(R17:Y17) -> $780,479.35 | R17: $780,479.35
A18: UFB-2 Revenue Summary | B18: =ROW() -> 18 | C18: ='Cover Page'!K6 -> 1346 | D18: ='Cover Page'!K4 -> 2017 | E18: ufb | F18: ars | G18: mlt | H18: ='Cover Page'!M38 -> 00:00:00 | J18: 07 | K18: Minimum Library Tax | M18: $0.00 | Q18: =SUM(R18:Y18) -> $0.00
A19: UFB-2 Revenue Summary | B19: =ROW() -> 19 | C19: ='Cover Page'!K6 -> 1346 | D19: ='Cover Page'!K4 -> 2017 | E19: ufb | F19: ars | G19: oslt | H19: ='Cover Page'!M38 -> 00:00:00 | J19: 54 | K19: Open Space Levy Tax | M19: $0.00 | Q19: =SUM(R19:Y19) -> $0.00
A20: UFB-2 Revenue Summary | B20: =ROW() -> 20 | C20: ='Cover Page'!K6 -> 1346 | D20: ='Cover Page'!K4 -> 2017 | E20: ufb | F20: ars | G20: aldst | H20: ='Cover Page'!M38 -> 00:00:00 | J20: 07 | K20: Addition to Local District School Tax | M20: $0.00 | Q20: =SUM(R20:Y20) -> $0.00
A21: UFB-2 Revenue Summary | B21: =ROW() -> 21 | C21: ='Cover Page'!K6 -> 1346 | D21: ='Cover Page'!K4 -> 2017 | E21: ufb | F21: ars | G21: aor | H21: ='Cover Page'!M38 -> 00:00:00 | J21: 08 | K21: Deficit General Budget | M21: $0.00 | Q21: =SUM(R21:Y21) -> $0.00
A22: UFB-2 Revenue Summary | B22: =ROW() -> 22 | C22: ='Cover Page'!K6 -> 1346 | D22: ='Cover Page'!K4 -> 2017 | E22: ufb | F22: ars | G22: tar | H22: ='Cover Page'!M38 -> 00:00:00 | K22: Total | L22: 3.87% | M22: $35,642.84 | O22: =SUM(O6:O21) -> $922,021.51 | Q22: =SUM(Q6:Q21) -> $957,664.35 | R22: $957,664.35 | S22: $0.00 | T22: $0.00 | U22: $0.00 | V22: $0.00 | W22: $0.00 | X22: $0.00 | Y22: $0.00
K23: Sheet UFB-2

Sheet UFB-3 Appropriations Summary
A1: =MID(CELL("filename",A2),FIND("]",CELL("filename",A2))+1,256) -> UFB-3 Appropriations Summary | B1: =ROW() -> 1 | C1: ='Cover Page'!K6 -> 1346 | D1: ='Cover Page'!K4 -> 2017 | E1: ufb | F1: as | H1: ='Cover Page'!M38 -> 00:00:00 | J1: USER FRIENDLY BUDGET SECTION - APPROPRIATIONS SUMMARY (ALL OPERATING FUNDS)
A2: =MID(CELL("filename",A2),FIND("]",CELL("filename",A2))+1,256) -> UFB-3 Appropriations Summary | B2: =ROW() -> 2 | C2: ='Cover Page'!K6 -> 1346 | D2: ='Cover Page'!K4 -> 2017 | E2: ufb | F2: as | H2: ='Cover Page'!M38 -> 00:00:00 | L2: Budgeted Positions | N2: % Difference Current v. Prior Year | O2: $ Difference Current v. Prior Year | P2: Total Modified Appropriation for Service Type (Prior Year) | R2: Total Appropriation for Service Type (Current Year) | S2: General | T2: Public&Private | U2: Open Space
A3: =MID(CELL("filename",A3),FIND("]",CELL("filename",A3))+1,256) -> UFB-3 Appropriations Summary | B3: =ROW() -> 3 | C3: ='Cover Page'!K6 -> 1346 | D3: ='Cover Page'!K4 -> 2017 | E3: ufb | F3: as | H3: ='Cover Page'!M38 -> 00:00:00 | J3: FCOA | L3: Full-Time | M3: Part-Time | S3: Budget | T3: Offsets | U3: Budget | V3: Utility | W3: Utility | X3: Utility | Y3: Utility | Z3: Utility | AA3: Utility
A4: UFB-3 Appropriations Summary | B4: =ROW() -> 4 | C4: ='Cover Page'!K6 -> 1346 | D4: ='Cover Page'!K4 -> 2017 | E4: ufb | F4: as | H4: ='Cover Page'!M38 -> 00:00:00
A5: UFB-3 Appropriations Summary | B5: =ROW() -> 5 | C5: ='Cover Page'!K6 -> 1346 | D5: ='Cover Page'!K4 -> 2017 | E5: ufb | F5: as | G5: gg | H5: ='Cover Page'!M38 -> 00:00:00 | J5: 20 | K5: General Government | L5: 1.00 | M5: 8.00 | N5: =O5/P5 -> -6.03% | O5: =(R5-P5) -> ($14,740.00) | P5: $244,490.00 | R5: =SUM(S5:AA5) -> $229,750.00 | S5: $229,750.00
A6: UFB-3 Appropriations Summary | B6: =ROW() -> 6 | C6: ='Cover Page'!K6 -> 1346 | D6: ='Cover Page'!K4 -> 2017 | E6: ufb | F6: as | G6: lua | H6: ='Cover Page'!M38 -> 00:00:00 | J6: 21 | K6: Land-Use Administration | O6: $0.00 | R6: $0.00
A7: UFB-3 Appropriations Summary | B7: =ROW() -> 7 | C7: ='Cover Page'!K6 -> 1346 | D7: ='Cover Page'!K4 -> 2017 | E7: ufb | F7: as | G7: ucc | H7: ='Cover Page'!M38 -> 00:00:00 | J7: 22 | K7: Uniform Construction Code | O7: $0.00 | R7: $0.00
A8: UFB-3 Appropriations Summary | B8: =ROW() -> 8 | C8: ='Cover Page'!K6 -> 1346 | D8: ='Cover Page'!K4 -> 2017 | E8: ufb | F8: as | G8: ins | H8: ='Cover Page'!M38 -> 00:00:00 | J8: 23 | K8: Insurance | N8: -2.46% | O8: ($2,262.00) | P8: $91,924.00 | R8: $89,662.00 | S8: $89,662.00
A9: UFB-3 Appropriations Summary | B9: =ROW() -> 9 | C9: ='Cover Page'!K6 -> 1346 | D9: ='Cover Page'!K4 -> 2017 | E9: ufb | F9: as | G9: ps | H9: ='Cover Page'!M38 -> 00:00:00 | J9: 25 | K9: Public Safety | N9: 0.81% | O9: $50.00 | P9: $6,200.00 | R9: $6,250.00 | S9: $6,250.00
A10: =MID(CELL("filename",A10),FIND("]",CELL("filename",A10))+1,256) -> UFB-3 Appropriations Summary | B10: =ROW() -> 10 | C10: ='Cover Page'!K6 -> 1346 | D10: ='Cover Page'!K4 -> 2017 | E10: ufb | F10: as | G10: pw | H10: ='Cover Page'!M38 -> 00:00:00 | J10: 26 | K10: Public Works | L10: 1.00 | M10: 1.00 | N10: 7.99% | O10: $12,100.00 | P10: $151,400.00 | R10: $163,500.00 | S10: $163,500.00
A11: =MID(CELL("filename",A11),FIND("]",CELL("filename",A11))+1,256) -> UFB-3 Appropriations Summary | B11: =ROW() -> 11 | C11: ='Cover Page'!K6 -> 1346 | D11: ='Cover Page'!K4 -> 2017 | E11: ufb | F11: as | G11: hhs | H11: ='Cover Page'!M38 -> 00:00:00 | J11: 27 | K11: Health and Human Services | M11: 1.00 | N11: 6.38% | O11: $36.00 | P11: $564.00 | R11: $600.00 | S11: $600.00
A12: =MID(CELL("filename",A12),FIND("]",CELL("filename",A12))+1,256) -> UFB-3 Appropriations Summary | B12: =ROW() -> 12 | C12: ='Cover Page'!K6 -> 1346 | D12: ='Cover Page'!K4 -> 2017 | E12: ufb | F12: as | G12: pr | H12: ='Cover Page'!M38 -> 00:00:00 | J12: 28 | K12: Parks and Recreation | M12: 1.00 | N12: -1.54% | O12: ($200.00) | P12: $13,000.00 | R12: $12,800.00 | S12: $12,800.00
A13: =MID(CELL("filename",A13),FIND("]",CELL("filename",A13))+1,256) -> UFB-3 Appropriations Summary | B13: =ROW() -> 13 | C13: ='Cover Page'!K6 -> 1346 | D13: ='Cover Page'!K4 -> 2017 | E13: ufb | F13: as | G13: eil | H13: ='Cover Page'!M38 -> 00:00:00 | J13: 29 | K13: Education (including Library) | O13: $0.00 | R13: $0.00
A14: UFB-3 Appropriations Summary | B14: =ROW() -> 14 | C14: ='Cover Page'!K6 -> 1346 | D14: ='Cover Page'!K4 -> 2017 | E14: ufb | F14: as | G14: ucl | H14: ='Cover Page'!M38 -> 00:00:00 | J14: 30 | K14: Unclassified | N14: -89.87% | O14: ($4,045.00) | P14: $4,501.00 | R14: $456.00 | S14: $456.00
A15: UFB-3 Appropriations Summary | B15: =ROW() -> 15 | C15: ='Cover Page'!K7 -> Website: | D15: ='Cover Page'!K4 -> 2017 | E15: ufb | F15: as | G15: ucl | H15: ='Cover Page'!M39 -> 00:00:00 | J15: 31 | K15: Utilities and Bulk Purchases | N15: 75.53% | O15: =(R15-P15) -> $98,000.00 | P15: =39750+90000 -> $129,750.00 | R15: $227,750.00 | S15: =188000+39750 -> $227,750.00
A16: UFB-3 Appropriations Summary | B16: =ROW() -> 16 | C16: ='Cover Page'!K6 -> 1346 | D16: ='Cover Page'!K4 -> 2017 | E16: ufb | F16: as | G16: ubp | H16: ='Cover Page'!M38 -> 00:00:00 | J16: 32 | K16: Landfill / Solid Waste Disposal | N16: 0.00% | O16: $0.00 | P16: $3,000.00 | R16: $3,000.00 | S16: $3,000.00
A17: UFB-3 Appropriations Summary | B17: =ROW() -> 17 | C17: ='Cover Page'!K6 -> 1346 | D17: ='Cover Page'!K4 -> 2017 | E17: ufb | F17: as | G17: con | H17: ='Cover Page'!M38 -> 00:00:00 | J17: 35 | K17: Contingency | N17: 0.00% | O17: $0.00 | P17: $100.00 | R17: $100.00 | S17: $100.00
A18: UFB-3 Appropriations Summary | B18: =ROW() -> 18 | C18: ='Cover Page'!K6 -> 1346 | D18: ='Cover Page'!K4 -> 2017 | E18: ufb | F18: as | G18: se | H18: ='Cover Page'!M38 -> 00:00:00 | J18: 36 | K18: Statutory Expenditures | N18: 7.75% | O18: $2,272.00 | P18: $29,312.00 | R18: $31,584.00 | S18: $31,584.00
A19: UFB-3 Appropriations Summary | B19: =ROW() -> 19 | C19: ='Cover Page'!K6 -> 1346 | D19: ='Cover Page'!K4 -> 2017 | E19: ufb | F19: as | G19: jud | H19: ='Cover Page'!M38 -> 00:00:00 | J19: 37 | K19: Judgements | O19: $0.00 | R19: $0.00
A20: UFB-3 Appropriations Summary | B20: =ROW() -> 20 | C20: ='Cover Page'!K6 -> 1346 | D20: ='Cover Page'!K4 -> 2017 | E20: ufb | F20: as | G20: ss | H20: ='Cover Page'!M38 -> 00:00:00 | J20: 42 | K20: Shared Services | N20: 1.96% | O20: $500.00 | P20: $25,500.00 | R20: $26,000.00 | S20: $26,000.00
A21: UFB-3 Appropriations Summary | B21: =ROW() -> 21 | C21: ='Cover Page'!K6 -> 1346 | D21: ='Cover Page'!K4 -> 2017 | E21: ufb | F21: as | G21: cpd | H21: ='Cover Page'!M38 -> 00:00:00 | J21: 43 | K21: Court and Public Defender | O21: $0.00 | R21: $0.00
A22: UFB-3 Appropriations Summary | B22: =ROW() -> 22 | C22: ='Cover Page'!K6 -> 1346 | D22: ='Cover Page'!K4 -> 2017 | E22: ufb | F22: as | G22: cap | H22: ='Cover Page'!M38 -> 00:00:00 | J22: 44 | K22: Capital | N22: 33.33% | O22: $10,000.00 | P22: $30,000.00 | R22: $40,000.00 | S22: $40,000.00
A23: UFB-3 Appropriations Summary | B23: =ROW() -> 23 | C23: ='Cover Page'!K6 -> 1346 | D23: ='Cover Page'!K4 -> 2017 | E23: ufb | F23: as | G23: debt | H23: ='Cover Page'!M38 -> 00:00:00 | J23: 45 | K23: Debt | N23: -43.42% | O23: ($70,523.00) | P23: $162,433.00 | R23: $91,910.00 | S23: $91,910.00
A24: UFB-3 Appropriations Summary | B24: =ROW() -> 24 | C24: ='Cover Page'!K6 -> 1346 | D24: ='Cover Page'!K4 -> 2017 | E24: ufb | F24: as | G24: defchr | H24: ='Cover Page'!M38 -> 00:00:00 | J24: 46 | K24: Deferred Charges | N24: 26.90% | O24: $4,000.00 | P24: $14,871.00 | R24: $18,871.00 | S24: $18,871.00
A25: UFB-3 Appropriations Summary | B25: =ROW() -> 25 | C25: ='Cover Page'!K6 -> 1346 | D25: ='Cover Page'!K4 -> 2017 | E25: ufb | F25: as | G25: dt1sd | H25: ='Cover Page'!M38 -> 00:00:00 | J25: 48 | K25: Debt - Type 1 School District | O25: $0.00 | R25: $0.00
A26: UFB-3 Appropriations Summary | B26: =ROW() -> 26 | C26: ='Cover Page'!K6 -> 1346 | D26: ='Cover Page'!K4 -> 2017 | E26: ufb | F26: as | G26: rut | H26: ='Cover Page'!M38 -> 00:00:00 | J26: 50 | K26: Reserve for Uncollected Taxes | N26: 1.35% | O26: $204.94 | P26: $15,226.41 | R26: $15,431.35 | S26: $15,431.35
A27: UFB-3 Appropriations Summary | B27: =ROW() -> 27 | C27: ='Cover Page'!K6 -> 1346 | D27: ='Cover Page'!K4 -> 2017 | E27: ufb | F27: as | G27: aoa | H27: ='Cover Page'!M38 -> 00:00:00 | J27: 55 | K27: Surplus General Budget | O27: $0.00 | R27: $0.00
A28: UFB-3 Appropriations Summary | B28: =ROW() -> 28 | C28: ='Cover Page'!K6 -> 1346 | D28: ='Cover Page'!K4 -> 2017 | E28: ufb | F28: as | G28: totba | H28: ='Cover Page'!M38 -> 00:00:00 | K28: Total | L28: =SUM(L5:L27) -> 2.00 | M28: =SUM(M5:M27) -> 11.00 | N28: 3.84% | O28: $35,392.94 | P28: =SUM(P5:P27) -> $922,271.41 | R28: =SUM(R5:R27) -> $957,664.35 | S28: =SUM(S5:S27) -> $957,664.35 | T28: $0.00 | U28: $0.00 | V28: $0.00 | W28: $0.00 | X28: $0.00 | Y28: $0.00 | Z28: $0.00 | AA28: $0.00
K29: Sheet UFB-3

Sheet UFB-4 Structural Imbalances
A1: =MID(CELL("filename",A2),FIND("]",CELL("filename",A2))+1,256) -> UFB-4 Structural Imbalances | B1: =ROW() -> 1 | C1: ='Cover Page'!K6 -> 1346 | D1: ='Cover Page'!K4 -> 2017 | E1: ufb | F1: sbi | H1: ='Cover Page'!M38 -> 00:00:00 | J1: USER FRIENDLY BUDGET SECTION
A2: =MID(CELL("filename",A2),FIND("]",CELL("filename",A2))+1,256) -> UFB-4 Structural Imbalances | B2: =ROW() -> 2 | C2: ='Cover Page'!K6 -> 1346 | D2: ='Cover Page'!K4 -> 2017 | E2: ufb | F2: sbi | H2: ='Cover Page'!M38 -> 00:00:00 | J2: STRUCTURAL BUDGET IMBALANCES
A3: =MID(CELL("filename",A3),FIND("]",CELL("filename",A3))+1,256) -> UFB-4 Structural Imbalances | B3: =ROW() -> 3 | C3: ='Cover Page'!K6 -> 1346 | D3: ='Cover Page'!K4 -> 2017 | E3: ufb | F3: sbi | H3: ='Cover Page'!M38 -> 00:00:00 | J3: Revenues at Risk | K3: Non-recurring appropriation reductions | L3: Future Year Appropriation Increases | M3: Structural Imbalance Offsets | N3: Line Item. Put "X" in cell to the left that corresponds to the type of imbalance. | O3: Amount | P3: Comment/Explanation
A4: UFB-4 Structural Imbalances | B4: =ROW() -> 4 | C4: ='Cover Page'!K6 -> 1346 | D4: ='Cover Page'!K4 -> 2017 | E4: ufb | F4: sbi | G4: item | H4: ='Cover Page'!M38 -> 00:00:00 | L4: x | N4: End of Recycling contract, subject to renewal at higher rate | O4: $12,500.00
A5: UFB-4 Structural Imbalances | B5: =ROW() -> 5 | C5: ='Cover Page'!K6 -> 1346 | D5: ='Cover Page'!K4 -> 2017 | E5: ufb | F5: sbi | G5: item | H5: ='Cover Page'!M38 -> 00:00:00 | K5: x | N5: Reductions in salary & wage due to retirement and terminations | O5: $8,000.00
A6: UFB-4 Structural Imbalances | B6: =ROW() -> 6 | C6: ='Cover Page'!K6 -> 1346 | D6: ='Cover Page'!K4 -> 2017 | E6: ufb | F6: sbi | G6: item | H6: ='Cover Page'!M28 -> 00:00:00 | J6: x | N6: Utiliization of surplus | O6: $75,000.00
A7: UFB-4 Structural Imbalances | B7: =ROW() -> 7 | C7: ='Cover Page'!K6 -> 1346 | D7: ='Cover Page'!K4 -> 2017 | E7: ufb | F7: sbi | G7: item | H7: ='Cover Page'!M28 -> 00:00:00
A8: UFB-4 Structural Imbalances | B8: =ROW() -> 8 | C8: ='Cover Page'!K6 -> 1346 | D8: ='Cover Page'!K4 -> 2017 | E8: ufb | F8: sbi | G8: item | H8: ='Cover Page'!M28 -> 00:00:00
A9: UFB-4 Structural Imbalances | B9: =ROW() -> 9 | C9: ='Cover Page'!K6 -> 1346 | D9: ='Cover Page'!K4 -> 2017 | E9: ufb | F9: sbi | G9: item | H9: ='Cover Page'!M28 -> 00:00:00
A10: =MID(CELL("filename",A10),FIND("]",CELL("filename",A10))+1,256) -> UFB-4 Structural Imbalances | B10: =ROW() -> 10 | C10: ='Cover Page'!K6 -> 1346 | D10: ='Cover Page'!K4 -> 2017 | E10: ufb | F10: sbi | G10: item | H10: ='Cover Page'!M28 -> 00:00:00
A11: =MID(CELL("filename",A11),FIND("]",CELL("filename",A11))+1,256) -> UFB-4 Structural Imbalances | B11: =ROW() -> 11 | C11: ='Cover Page'!K6 -> 1346 | D11: ='Cover Page'!K4 -> 2017 | E11: ufb | F11: sbi | G11: item | H11: ='Cover Page'!M28 -> 00:00:00
A12: =MID(CELL("filename",A12),FIND("]",CELL("filename",A12))+1,256) -> UFB-4 Structural Imbalances | B12: =ROW() -> 12 | C12: ='Cover Page'!K6 -> 1346 | D12: ='Cover Page'!K4 -> 2017 | E12: ufb | F12: sbi | G12: item | H12: ='Cover Page'!M28 -> 00:00:00
A13: =MID(CELL("filename",A13),FIND("]",CELL("filename",A13))+1,256) -> UFB-4 Structural Imbalances | B13: =ROW() -> 13 | C13: ='Cover Page'!K6 -> 1346 | D13: ='Cover Page'!K4 -> 2017 | E13: ufb | F13: sbi | G13: item | H13: ='Cover Page'!M28 -> 00:00:00
A14: UFB-4 Structural Imbalances | B14: =ROW() -> 14 | C14: ='Cover Page'!K6 -> 1346 | D14: ='Cover Page'!K4 -> 2017 | E14: ufb | F14: sbi | G14: item | H14: ='Cover Page'!M28 -> 00:00:00
A15: UFB-4 Structural Imbalances | B15: =ROW() -> 15 | C15: ='Cover Page'!K6 -> 1346 | D15: ='Cover Page'!K4 -> 2017 | E15: ufb | F15: sbi | G15: item | H15: ='Cover Page'!M28 -> 00:00:00
A16: UFB-4 Structural Imbalances | B16: =ROW() -> 16 | C16: ='Cover Page'!K6 -> 1346 | D16: ='Cover Page'!K4 -> 2017 | E16: ufb | F16: sbi | G16: item | H16: ='Cover Page'!M38 -> 00:00:00
A17: UFB-4 Structural Imbalances | B17: =ROW() -> 17 | C17: ='Cover Page'!K6 -> 1346 | D17: ='Cover Page'!K4 -> 2017 | E17: ufb | F17: sbi | G17: item | H17: ='Cover Page'!M38 -> 00:00:00
A18: UFB-4 Structural Imbalances | B18: =ROW() -> 18 | C18: ='Cover Page'!K6 -> 1346 | D18: ='Cover Page'!K4 -> 2017 | E18: ufb | F18: sbi | G18: item | H18: ='Cover Page'!M38 -> 00:00:00
A19: UFB-4 Structural Imbalances | B19: =ROW() -> 19 | C19: ='Cover Page'!K6 -> 1346 | D19: ='Cover Page'!K4 -> 2017 | E19: ufb | F19: sbi | G19: item | H19: ='Cover Page'!M38 -> 00:00:00
A20: =MID(CELL("filename",A20),FIND("]",CELL("filename",A20))+1,256) -> UFB-4 Structural Imbalances | B20: =ROW() -> 20 | C20: ='Cover Page'!K6 -> 1346 | D20: ='Cover Page'!K4 -> 2017 | E20: ufb | F20: sbi | G20: item | H20: ='Cover Page'!M38 -> 00:00:00
A21: =MID(CELL("filename",A21),FIND("]",CELL("filename",A21))+1,256) -> UFB-4 Structural Imbalances | B21: =ROW() -> 21 | C21: ='Cover Page'!K6 -> 1346 | D21: ='Cover Page'!K4 -> 2017 | E21: ufb | F21: sbi | G21: item | H21: ='Cover Page'!M38 -> 00:00:00
A22: =MID(CELL("filename",A22),FIND("]",CELL("filename",A22))+1,256) -> UFB-4 Structural Imbalances | B22: =ROW() -> 22 | C22: ='Cover Page'!K6 -> 1346 | D22: ='Cover Page'!K4 -> 2017 | E22: ufb | F22: sbi | G22: item | H22: ='Cover Page'!M38 -> 00:00:00
A23: =MID(CELL("filename",A23),FIND("]",CELL("filename",A23))+1,256) -> UFB-4 Structural Imbalances | B23: =ROW() -> 23 | C23: ='Cover Page'!K6 -> 1346 | D23: ='Cover Page'!K4 -> 2017 | E23: ufb | F23: sbi | G23: item | H23: ='Cover Page'!M38 -> 00:00:00
A24: UFB-4 Structural Imbalances | B24: =ROW() -> 24 | C24: ='Cover Page'!K6 -> 1346 | D24: ='Cover Page'!K4 -> 2017 | E24: ufb | F24: sbi | G24: item | H24: ='Cover Page'!M38 -> 00:00:00
A25: UFB-4 Structural Imbalances | B25: =ROW() -> 25 | C25: ='Cover Page'!K6 -> 1346 | D25: ='Cover Page'!K4 -> 2017 | E25: ufb | F25: sbi | G25: item | H25: ='Cover Page'!M38 -> 00:00:00
J27: Sheet UFB-4

Sheet UFB-5 Tax Assessments
A1: =MID(CELL("filename",A1),FIND("]",CELL("filename",A1))+1,256) -> UFB-5 Tax Assessments | B1: =ROW() -> 1 | C1: ='Cover Page'!K6 -> 1346 | D1: ='Cover Page'!K4 -> 2017 | E1: ufb | F1: apv | H1: =TODAY() -> 2017-05-10 | J1: ASSESSED PROPERTY VALUATIONS - EXEMPT PROPERTY - PROPERTY TAX APPEAL DATA
A2: =MID(CELL("filename",A2),FIND("]",CELL("filename",A2))+1,256) -> UFB-5 Tax Assessments | B2: =ROW() -> 2 | C2: ='Cover Page'!K6 -> 1346 | D2: ='Cover Page'!K4 -> 2017 | E2: ufb | F2: apv | H2: =TODAY() -> 2017-05-10 | J2: ="Property Tax Assessments - Taxable Properties (October 1, "&'Cover Page'!K4-1&" Value)" -> Property Tax Assessments - Taxable Properties (October 1, 2016 Value) | Q2: ="Property Tax Assessments - Exempt Properties (October 1, "&'Cover Page'!K4-1&" Value)" -> Property Tax Assessments - Exempt Properties (October 1, 2016 Value)
A3: UFB-5 Tax Assessments | B3: =ROW() -> 3 | C3: ='Cover Page'!K6 -> 1346 | D3: ='Cover Page'!K4 -> 2017 | E3: ufb | F3: apv | H3: =TODAY() -> 2017-05-10 | L3: # of Parcels | M3: Assessed Value | N3: % of Total | S3: # of Parcels | T3: Assessed Value | U3: % of Total
A4: UFB-5 Tax Assessments | B4: =ROW() -> 4 | C4: ='Cover Page'!K6 -> 1346 | D4: ='Cover Page'!K4 -> 2017 | E4: ufb | F4: apv | G4: vl-ps | H4: 2017-05-10 | J4: 1 | K4: Vacant Land | N4: =IF(M4>0,M4/M$12,0) -> 0.00% | Q4: 15A | R4: Public Schools | U4: =IF(T4>0,T4/T$12,0) -> 0.00%
A5: UFB-5 Tax Assessments | B5: =ROW() -> 5 | C5: ='Cover Page'!K6 -> 1346 | D5: ='Cover Page'!K4 -> 2017 | E5: ufb | F5: apv | G5: r-os | H5: 2017-05-10 | J5: 2 | K5: Residential | L5: 122 | M5: $19,564,700.00 | N5: 35.08% | Q5: 15B | R5: Other Schools | U5: 0.00%
A6: UFB-5 Tax Assessments | B6: =ROW() -> 6 | C6: ='Cover Page'!K6 -> 1346 | D6: ='Cover Page'!K4 -> 2017 | E6: ufb | F6: apv | G6: f-pp | H6: 2017-05-10 | J6: 3A/3B | K6: Farm | N6: 0.00% | Q6: 15C | R6: Public Property | S6: 3 | T6: $1,896,700.00 | U6: 100.00%
A7: UFB-5 Tax Assessments | B7: =ROW() -> 7 | C7: ='Cover Page'!K6 -> 1346 | D7: ='Cover Page'!K4 -> 2017 | E7: ufb | F7: apv | G7: c-cc | H7: 2017-05-10 | J7: 4A | K7: Commercial | N7: 0.00% | Q7: 15D | R7: Church and Charities | U7: 0.00%
A8: UFB-5 Tax Assessments | B8: =ROW() -> 8 | C8: ='Cover Page'!K6 -> 1346 | D8: ='Cover Page'!K4 -> 2017 | E8: ufb | F8: apv | G8: i-cg | H8: 2017-05-10 | J8: 4B | K8: Industrial | L8: 1 | M8: $34,309,800.00 | N8: 61.52% | Q8: 15E | R8: Cemeteries & Graveyards | U8: 0.00%
A9: =MID(CELL("filename",A9),FIND("]",CELL("filename",A9))+1,256) -> UFB-5 Tax Assessments | B9: =ROW() -> 9 | C9: ='Cover Page'!K6 -> 1346 | D9: ='Cover Page'!K4 -> 2017 | E9: ufb | F9: apv | G9: a-oe | H9: 2017-05-10 | J9: 4C | K9: Apartments | N9: 0.00% | Q9: 15F | R9: Other Exempt | U9: 0.00%
A10: =MID(CELL("filename",A10),FIND("]",CELL("filename",A10))+1,256) -> UFB-5 Tax Assessments | B10: =ROW() -> 10 | C10: ='Cover Page'!K6 -> 1346 | D10: ='Cover Page'!K4 -> 2017 | E10: ufb | F10: apv | G10: rr | H10: 2017-05-10 | J10: 5A/5B | K10: Railroad | N10: 0.00%
A11: =MID(CELL("filename",A11),FIND("]",CELL("filename",A11))+1,256) -> UFB-5 Tax Assessments | B11: =ROW() -> 11 | C11: ='Cover Page'!K6 -> 1346 | D11: ='Cover Page'!K4 -> 2017 | E11: ufb | F11: apv | G11: bpp | H11: 2017-05-10 | J11: 6A/6B | K11: Business Personal Property | L11: 1 | M11: $1,896,700.00 | N11: 3.40%
A12: UFB-5 Tax Assessments | B12: =ROW() -> 12 | C12: ='Cover Page'!K6 -> 1346 | D12: ='Cover Page'!K4 -> 2017 | E12: ufb | F12: apv | G12: totas | H12: 2017-05-10 | K12: Total | L12: =SUM(L4:L11) -> 124 | M12: =SUM(M4:M11) -> $55,771,200.00 | N12: =SUM(N4:N11) -> 100.00% | R12: Total | S12: =SUM(S4:S9) -> 3 | T12: =SUM(T4:T9) -> $1,896,700.00 | U12: =SUM(U4:U9) -> 100.00%
A13: UFB-5 Tax Assessments | B13: =ROW() -> 13 | C13: ='Cover Page'!K6 -> 1346 | D13: ='Cover Page'!K4 -> 2017 | E13: ufb | F13: apv | H13: 2017-05-10
A14: UFB-5 Tax Assessments | B14: =ROW() -> 14 | C14: ='Cover Page'!K6 -> 1346 | D14: ='Cover Page'!K4 -> 2017 | E14: ufb | F14: apv | G14: aratv | H14: 2017-05-10 | K14: Average Ratio (%), Assessed to True Value | M14: 102.75%
A15: UFB-5 Tax Assessments | B15: =ROW() -> 15 | C15: ='Cover Page'!K6 -> 1346 | D15: ='Cover Page'!K4 -> 2017 | E15: ufb | F15: apv | G15: evtp | H15: 2017-05-10 | K15: Equalized Valuation, Taxable Properties | M15: =IF(M12>0,M12/M14,0) -> $54,278,540.15 | R15: Percentage of Exempt vs.
A16: UFB-5 Tax Assessments | B16: =ROW() -> 16 | C16: ='Cover Page'!K6 -> 1346 | D16: ='Cover Page'!K4 -> 2017 | E16: ufb | F16: apv | G16: pevnep | H16: ='Cover Page'!M38 -> 00:00:00 | R16: Non-Exempt Properties | S16: =T12/M12 -> 3.40%
A17: UFB-5 Tax Assessments | B17: =ROW() -> 17 | C17: ='Cover Page'!K6 -> 1346 | D17: ='Cover Page'!K4 -> 2017 | E17: ufb | F17: apv | G17: anptafs | H17: ='Cover Page'!M38 -> 00:00:00 | K17: =" Total # of property tax appeals filed in "&'Cover Page'!K4-1 -> Total # of property tax appeals filed in 2016 | M17: County Tax Board | N17: 0.00
A18: UFB-5 Tax Assessments | B18: =ROW() -> 18 | C18: ='Cover Page'!K6 -> 1346 | D18: ='Cover Page'!K4 -> 2017 | E18: ufb | F18: apv | G18: anptafc | H18: ='Cover Page'!M38 -> 00:00:00 | M18: State Tax Court | N18: 0.00
A19: UFB-5 Tax Assessments | B19: =ROW() -> 19 | C19: ='Cover Page'!K6 -> 1346 | D19: ='Cover Page'!K4 -> 2017 | E19: ufb | F19: apv | G19: nctbdatc | H19: ='Cover Page'!M38 -> 00:00:00 | K19: ="Number of "&'Cover Page'!K4-1&" County Tax Board decisions appealed to Tax Court" -> Number of 2016 County Tax Board decisions appealed to Tax Court | N19: 0.00
A20: UFB-5 Tax Assessments | B20: =ROW() -> 20 | C20: ='Cover Page'!K6 -> 1346 | D20: ='Cover Page'!K4 -> 2017 | E20: ufb | F20: apv | G20: npptafdstc | H20: ='Cover Page'!M38 -> 00:00:00 | K20: Number of pending property tax appeals in State Tax Court | N20: 0.00
A21: UFB-5 Tax Assessments | B21: =ROW() -> 21 | C21: ='Cover Page'!K6 -> 1346 | D21: ='Cover Page'!K4 -> 2017 | E21: ufb | F21: apv | H21: ='Cover Page'!M38 -> 00:00:00
A22: UFB-5 Tax Assessments | B22: =ROW() -> 22 | C22: ='Cover Page'!K6 -> 1346 | D22: ='Cover Page'!K4 -> 2017 | E22: ufb | F22: apv | G22: apomta | H22: ='Cover Page'!M38 -> 00:00:00 | K22: ="Amount paid out by municipality for tax appeals in "&'Cover Page'!K4-1 -> Amount paid out by municipality for tax appeals in 2016 | N22: $0.00
A23: UFB-5 Tax Assessments | B23: =ROW() -> 23 | C23: ='Cover Page'!K6 -> 1346 | D23: ='Cover Page'!K4 -> 2017 | E23: ufb | F23: apv | H23: ='Cover Page'!M38 -> 00:00:00
A24: UFB-5 Tax Assessments | B24: =ROW() -> 24 | C24: ='Cover Page'!K6 -> 1346 | D24: ='Cover Page'!K4 -> 2017 | E24: ufb | F24: aea | H24: ='Cover Page'!M38 -> 00:00:00
A25: UFB-5 Tax Assessments | B25: =ROW() -> 25 | C25: ='Cover Page'!K6 -> 1346 | D25: ='Cover Page'!K4 -> 2017 | E25: ufb | F25: aea | H25: ='Cover Page'!M38 -> 00:00:00 | K25: Prior Budget Year's Payments in Lieu of Tax (PILOT) - 5 Year Exemptions/Abatements
A26: UFB-5 Tax Assessments | B26: =ROW() -> 26 | C26: ='Cover Page'!K6 -> 1346 | D26: ='Cover Page'!K4 -> 2017 | E26: ufb | F26: aea | H26: ='Cover Page'!M38 -> 00:00:00 | L26: # of | M26: PILOT | O26: Taxes if Billed in Full
A27: UFB-5 Tax Assessments | B27: =ROW() -> 27 | C27: ='Cover Page'!K6 -> 1346 | D27: ='Cover Page'!K4 -> 2017 | E27: ufb | F27: aea | H27: ='Cover Page'!M38 -> 00:00:00 | L27: Parcels | M27: Billing/Revenue | N27: Assessed Value | O27: ='Cover Page'!K4-1&" Total Tax Rate" -> 2016 Total Tax Rate
A28: UFB-5 Tax Assessments | B28: =ROW() -> 28 | C28: ='Cover Page'!K6 -> 1346 | D28: ='Cover Page'!K4 -> 2017 | E28: ufb | F28: aea | G28: cie | H28: ='Cover Page'!M38 -> 00:00:00 | J28: G | K28: Commercial/Industrial Exemption
A29: UFB-5 Tax Assessments | B29: =ROW() -> 29 | C29: ='Cover Page'!K6 -> 1346 | D29: ='Cover Page'!K4 -> 2017 | E29: ufb | F29: aea | G29: de | H29: ='Cover Page'!M38 -> 00:00:00 | J29: I | K29: Dwelling Exemption
A30: UFB-5 Tax Assessments | B30: =ROW() -> 30 | C30: ='Cover Page'!K6 -> 1346 | D30: ='Cover Page'!K4 -> 2017 | E30: ufb | F30: aea | G30: da | H30: ='Cover Page'!M38 -> 00:00:00 | J30: J | K30: Dwelling Abatement
A31: UFB-5 Tax Assessments | B31: =ROW() -> 31 | C31: ='Cover Page'!K6 -> 1346 | D31: ='Cover Page'!K4 -> 2017 | E31: ufb | F31: aea | G31: ndce | H31: ='Cover Page'!M38 -> 00:00:00 | J31: K | K31: New Dwelling/Conversion Exemption
A32: UFB-5 Tax Assessments | B32: =ROW() -> 32 | C32: ='Cover Page'!K6 -> 1346 | D32: ='Cover Page'!K4 -> 2017 | E32: ufb | F32: aea | G32: ndca | H32: ='Cover Page'!M38 -> 00:00:00 | J32: L | K32: New Dwelling/Conversion Abatement
A33: UFB-5 Tax Assessments | B33: =ROW() -> 33 | C33: ='Cover Page'!K6 -> 1346 | D33: ='Cover Page'!K4 -> 2017 | E33: ufb | F33: aea | G33: mde | H33: ='Cover Page'!M38 -> 00:00:00 | J33: N | K33: Multiple Dwelling Exemption
A34: UFB-5 Tax Assessments | B34: =ROW() -> 34 | C34: ='Cover Page'!K6 -> 1346 | D34: ='Cover Page'!K4 -> 2017 | E34: ufb | F34: aea | G34: mda | H34: ='Cover Page'!M38 -> 00:00:00 | J34: O | K34: Multiple Dwelling Abatement
A35: UFB-5 Tax Assessments | B35: =ROW() -> 35 | C35: ='Cover Page'!K6 -> 1346 | D35: ='Cover Page'!K4 -> 2017 | E35: ufb | F35: aea | G35: totea | H35: ='Cover Page'!M38 -> 00:00:00 | K35: Total 5 Yr Exemptions/Abatements | L35: =SUM(L28:L34) -> 0 | M35: =SUM(M28:M34) -> 0.00 | N35: =SUM(N28:N34) -> 0.00 | O35: =SUM(O28:O34) -> 0.00
J36: Sheet UFB-5

Sheet UFB-6 Tax Abatements
A1: UFB-1 Tax Impact | B1: 1 | C1: 0104 | D1: ='Cover Page'!K4 -> 2017 | E1: ufb | F1: apvep | H1: 2015-03-10 | Q1: USER FRIENDLY BUDGET SECTION
A2: UFB-1 Tax Impact | B2: 2 | C2: 0104 | D2: ='Cover Page'!K4 -> 2017 | E2: ufb | F2: apvep | H2: 2015-03-10 | Q2: Long Term Tax Exemptions
A3: UFB-1 Tax Impact | B3: 3 | C3: 0104 | D3: ='Cover Page'!K4 -> 2017 | E3: ufb | F3: apvep | H3: 2015-03-10
A4: UFB-1 Tax Impact | B4: 4 | C4: 0104 | D4: ='Cover Page'!K4 -> 2017 | E4: ufb | F4: apvep | H4: 2015-03-10 | K4: Prior Budget Year's Payments in Lieu of Tax (PILOT) - Long Term Tax Exemptions | Q4: Prior Budget Year's Payments in Lieu of Tax (PILOT) - Long Term Tax Exemptions | W4: Prior Budget Year's Payments in Lieu of Tax (PILOT) - Long Term Tax Exemptions | AC4: Prior Budget Year's Payments in Lieu of Tax (PILOT) - Long Term Tax Exemptions
A5: UFB-1 Tax Impact | B5: 5 | C5: 0104 | D5: ='Cover Page'!K4 -> 2017 | E5: ufb | F5: apvep | H5: 2015-03-10
A6: UFB-1 Tax Impact | B6: 6 | C6: 0104 | D6: ='Cover Page'!K4 -> 2017 | E6: ufb | F6: apvep | H6: 2015-03-10 | L6: Type of Project | O6: Taxes if Billed | R6: Type of Project | U6: Taxes if Billed | X6: Type of Project | AA6: Taxes if Billed | AD6: Type of Project | AG6: Taxes if Billed
A7: UFB-1 Tax Impact | B7: 7 | C7: 0104 | D7: ='Cover Page'!K4 -> 2017 | E7: ufb | F7: apvep | H7: ='Cover Page'!M38 -> 00:00:00 | K7: Project | L7: (use drop-down | O7: In Full | Q7: Project | R7: (use drop-down | U7: In Full | W7: Project | X7: (use drop-down | AA7: In Full | AC7: Project | AD7: (use drop-down | AG7: In Full
A8: UFB-1 Tax Impact | B8: 8 | C8: 0104 | D8: ='Cover Page'!K4 -> 2017 | E8: ufb | F8: apvep | H8: ='Cover Page'!M38 -> 00:00:00 | K8: Name | L8: for data entry) | M8: PILOT Billing | N8: Assessed Value | O8: ='Cover Page'!K4-1&" Total Tax Rate" -> 2016 Total Tax Rate | Q8: Name | R8: for data entry) | S8: PILOT Billing | T8: Assessed Value | U8: ='Cover Page'!K4-1&" Total Tax Rate" -> 2016 Total Tax Rate | W8: Name | X8: for data entry) | Y8: PILOT Billing | Z8: Assessed Value | AA8: ='Cover Page'!K4-1&" Total Tax Rate" -> 2016 Total Tax Rate | AC8: Name | AD8: for data entry) | AE8: PILOT Billing | AF8: Assessed Value | AG8: ='Cover Page'!K4-1&" Total Tax Rate" -> 2016 Total Tax Rate
A9: UFB-1 Tax Impact | B9: 9 | C9: 0104 | D9: ='Cover Page'!K4 -> 2017 | E9: ufb | F9: apvep | G9: project | H9: ='Cover Page'!M38 -> 00:00:00
A10: UFB-1 Tax Impact | B10: 10 | C10: 0104 | D10: ='Cover Page'!K4 -> 2017 | E10: ufb | F10: apvep | G10: project | H10: ='Cover Page'!M38 -> 00:00:00
A11: UFB-1 Tax Impact | B11: 11 | C11: 0104 | D11: ='Cover Page'!K4 -> 2017 | E11: ufb | F11: apvep | G11: project | H11: ='Cover Page'!M38 -> 00:00:00
A12: UFB-1 Tax Impact | B12: 12 | C12: 0104 | D12: ='Cover Page'!K4 -> 2017 | E12: ufb | F12: apvep | G12: project | H12: ='Cover Page'!M38 -> 00:00:00
A13: UFB-1 Tax Impact | B13: 13 | C13: 0104 | D13: ='Cover Page'!K4 -> 2017 | E13: ufb | F13: apvep | G13: project | H13: ='Cover Page'!M38 -> 00:00:00
A14: UFB-1 Tax Impact | B14: 14 | C14: 0104 | D14: ='Cover Page'!K4 -> 2017 | E14: ufb | F14: apvep | G14: project | H14: ='Cover Page'!M38 -> 00:00:00
A15: UFB-1 Tax Impact | B15: 15 | C15: 0104 | D15: ='Cover Page'!K4 -> 2017 | E15: ufb | F15: apvep | G15: project | H15: ='Cover Page'!M38 -> 00:00:00
A16: UFB-1 Tax Impact | B16: 16 | C16: 0104 | D16: ='Cover Page'!K4 -> 2017 | E16: ufb | F16: apvep | G16: project | H16: ='Cover Page'!M38 -> 00:00:00
A17: UFB-1 Tax Impact | B17: 17 | C17: 0104 | D17: ='Cover Page'!K4 -> 2017 | E17: ufb | F17: apvep | G17: project | H17: ='Cover Page'!M38 -> 00:00:00
A18: UFB-1 Tax Impact | B18: 18 | C18: 0104 | D18: ='Cover Page'!K4 -> 2017 | E18: ufb | F18: apvep | G18: project | H18: ='Cover Page'!M38 -> 00:00:00
A19: UFB-1 Tax Impact | B19: 19 | C19: 0104 | D19: ='Cover Page'!K4 -> 2017 | E19: ufb | F19: apvep | G19: project | H19: ='Cover Page'!M38 -> 00:00:00
A20: UFB-1 Tax Impact | B20: 20 | C20: 0104 | D20: ='Cover Page'!K4 -> 2017 | E20: ufb | F20: apvep | G20: project | H20: ='Cover Page'!M38 -> 00:00:00
A21: UFB-1 Tax Impact | B21: 21 | C21: 0104 | D21: ='Cover Page'!K4 -> 2017 | E21: ufb | F21: apvep | G21: project | H21: ='Cover Page'!M38 -> 00:00:00
A22: UFB-1 Tax Impact | B22: 22 | C22: 0104 | D22: ='Cover Page'!K4 -> 2017 | E22: ufb | F22: apvep | G22: project | H22: ='Cover Page'!M38 -> 00:00:00
A23: UFB-1 Tax Impact | B23: 23 | C23: 0104 | D23: ='Cover Page'!K4 -> 2017 | E23: ufb | F23: apvep | G23: project | H23: ='Cover Page'!M38 -> 00:00:00
A24: UFB-1 Tax Impact | B24: 24 | C24: 0104 | D24: ='Cover Page'!K4 -> 2017 | E24: ufb | F24: apvep | G24: project | H24: ='Cover Page'!M38 -> 00:00:00
A25: UFB-1 Tax Impact | B25: 25 | C25: 0104 | D25: ='Cover Page'!K4 -> 2017 | E25: ufb | F25: apvep | G25: project | H25: ='Cover Page'!M38 -> 00:00:00
A26: UFB-1 Tax Impact | B26: 26 | C26: 0104 | D26: ='Cover Page'!K4 -> 2017 | E26: ufb | F26: apvep | G26: project | H26: ='Cover Page'!M38 -> 00:00:00
A27: UFB-1 Tax Impact | B27: 27 | C27: 0104 | D27: ='Cover Page'!K4 -> 2017 | E27: ufb | F27: apvep | G27: project | H27: ='Cover Page'!M38 -> 00:00:00 | AI27: Comm./Indust.
A28: UFB-1 Tax Impact | B28: 28 | C28: 0104 | D28: ='Cover Page'!K4 -> 2017 | E28: ufb | F28: apvep | G28: project | H28: ='Cover Page'!M38 -> 00:00:00 | AI28: Aff. Housing
A29: UFB-1 Tax Impact | B29: 29 | C29: 0104 | D29: ='Cover Page'!K4 -> 2017 | E29: ufb | F29: apvep | G29: project | H29: ='Cover Page'!M38 -> 00:00:00 | AI29: Other
A30: UFB-1 Tax Impact | B30: 30 | C30: 0104 | D30: ='Cover Page'!K4 -> 2017 | E30: ufb | F30: apvep | G30: project | H30: ='Cover Page'!M38 -> 00:00:00
A31: UFB-1 Tax Impact | B31: 31 | C31: 0104 | D31: ='Cover Page'!K4 -> 2017 | E31: ufb | F31: apvep | G31: project | H31: ='Cover Page'!M38 -> 00:00:00
A32: UFB-1 Tax Impact | B32: 32 | C32: 0104 | D32: ='Cover Page'!K4 -> 2017 | E32: ufb | F32: apvep | G32: project | H32: ='Cover Page'!M38 -> 00:00:00
A33: UFB-1 Tax Impact | B33: 33 | C33: 0104 | D33: ='Cover Page'!K4 -> 2017 | E33: ufb | F33: apvep | G33: project | H33: ='Cover Page'!M38 -> 00:00:00
A34: UFB-1 Tax Impact | B34: 34 | C34: 0104 | D34: ='Cover Page'!K4 -> 2017 | E34: ufb | F34: apvep | G34: project | H34: ='Cover Page'!M38 -> 00:00:00
A35: UFB-1 Tax Impact | B35: 35 | C35: 0104 | D35: ='Cover Page'!K4 -> 2017 | E35: ufb | F35: apvep | G35: project | H35: ='Cover Page'!M38 -> 00:00:00
A36: UFB-1 Tax Impact | B36: 36 | C36: 0104 | D36: ='Cover Page'!K4 -> 2017 | E36: ufb | F36: apvep | G36: project | H36: ='Cover Page'!M38 -> 00:00:00
A37: UFB-1 Tax Impact | B37: 37 | C37: 0104 | D37: ='Cover Page'!K4 -> 2017 | E37: ufb | F37: apvep | G37: totex | H37: ='Cover Page'!M38 -> 00:00:00 | K37: Total Long Term Exemptions - Column Total | M37: =SUM(M9:M36) -> 0.00 | N37: =SUM(N9:N36) -> 0.00 | O37: =SUM(O9:O36) -> 0.00 | Q37: Total Long Term Exemptions - Column Total | S37: =SUM(S9:S35) -> $0.00 | T37: =SUM(T9:T35) -> $0.00 | U37: =SUM(U9:U35) -> $0.00 | W37: Total Long Term Exemptions - Column Total | Y37: =SUM(Y9:Y35) -> $0.00 | Z37: =SUM(Z9:Z35) -> $0.00 | AA37: =SUM(AA9:AA35) -> $0.00 | AC37: Total Long Term Exemptions - Column Total | AE37: =SUM(AE9:AE35) -> $0.00 | AF37: =SUM(AF9:AF35) -> $0.00 | AG37: =SUM(AG9:AG35) -> $0.00
A38: UFB-1 Tax Impact | B38: 38 | C38: 0104 | D38: ='Cover Page'!K4 -> 2017 | E38: ufb | F38: apvep | G38: gtotex | H38: ='Cover Page'!M38 -> 00:00:00 | K38: Mark "X" if Grand Total | AC38: Total Long Term Exemptions - GRAND TOTAL | AE38: =M37+S37+Y37+AE37 -> $0.00 | AF38: =N37+T37+Z37+AF37 -> $0.00 | AG38: =O37+U37+AA37+AG37 -> $0.00
U39: Sheet UFB-6 | AG39: Sheet UFB-6C

Sheet UFB-7 Personnel Costs
A1: =MID(CELL("filename",A2),FIND("]",CELL("filename",A2))+1,256) -> UFB-7 Personnel Costs | B1: =ROW() -> 1 | C1: ='Cover Page'!K6 -> 1346 | D1: ='Cover Page'!K4 -> 2017 | E1: ufb | F1: bpc | H1: ='Cover Page'!M38 -> 00:00:00 | J1: USER FRIENDLY BUDGET SECTION
A2: =MID(CELL("filename",A2),FIND("]",CELL("filename",A2))+1,256) -> UFB-7 Personnel Costs | B2: =ROW() -> 2 | C2: ='Cover Page'!K6 -> 1346 | D2: ='Cover Page'!K4 -> 2017 | E2: ufb | F2: bpc | H2: ='Cover Page'!M38 -> 00:00:00 | J2: BUDGETED PERSONNEL COSTS
A3: =MID(CELL("filename",A3),FIND("]",CELL("filename",A3))+1,256) -> UFB-7 Personnel Costs | B3: =ROW() -> 3 | C3: ='Cover Page'!K6 -> 1346 | D3: ='Cover Page'!K4 -> 2017 | E3: ufb | F3: bpc | H3: ='Cover Page'!M38 -> 00:00:00
A4: UFB-7 Personnel Costs | B4: =ROW() -> 4 | C4: ='Cover Page'!K6 -> 1346 | D4: ='Cover Page'!K4 -> 2017 | E4: ufb | F4: bpc | H4: ='Cover Page'!M38 -> 00:00:00 | L4: # of | M4: # of | N4: Total | P4: Overtime | Q4: Pension | R4: Health Benefits | S4: Employment
A5: UFB-7 Personnel Costs | B5: =ROW() -> 5 | C5: ='Cover Page'!K6 -> 1346 | D5: ='Cover Page'!K4 -> 2017 | E5: ufb | F5: bpc | H5: ='Cover Page'!M38 -> 00:00:00 | L5: Full-Time | M5: Part-Time | N5: Personnel | O5: Base | P5: and other | Q5: (Estimate) | R5: Net of | S5: Taxes and
A6: UFB-7 Personnel Costs | B6: =ROW() -> 6 | C6: ='Cover Page'!K6 -> 1346 | D6: ='Cover Page'!K4 -> 2017 | E6: ufb | F6: bpc | H6: ='Cover Page'!M38 -> 00:00:00 | J6: Organization / Individuals Eligible for Benefit | L6: Employees | M6: Employees | N6: Cost | O6: Pay | P6: Compensation | R6: Cost Share | S6: Other Benefits
A7: UFB-7 Personnel Costs | B7: =ROW() -> 7 | C7: ='Cover Page'!K6 -> 1346 | D7: ='Cover Page'!K4 -> 2017 | E7: ufb | F7: bpc | H7: ='Cover Page'!M38 -> 00:00:00
A8: UFB-7 Personnel Costs | B8: =ROW() -> 8 | C8: ='Cover Page'!K6 -> 1346 | D8: ='Cover Page'!K4 -> 2017 | E8: ufb | F8: bpc | G8: gb | H8: ='Cover Page'!M38 -> 00:00:00 | J8: Governing Body | M8: 3.00 | N8: =SUM(O8:S8) -> 8,665.83 | O8: $8,050.00 | S8: =O8*0.0765 -> $615.83
A9: UFB-7 Personnel Costs | B9: =ROW() -> 9 | C9: ='Cover Page'!K6 -> 1346 | D9: ='Cover Page'!K4 -> 2017 | E9: ufb | F9: bpc | G9: ssdhm | H9: ='Cover Page'!M38 -> 00:00:00 | J9: Supervisory Staff (Department Heads & Managers) | L9: 1.00 | M9: 7.00 | N9: 169,905.84 | O9: =42000+11200+9000+1000+750+47195+4000 -> $115,145.00 | P9: $4,513.00 | Q9: $6,093.00 | R9: =38256-3255 -> $35,001.00 | S9: =(O9*0.0765)+(P9*0.0765) -> $9,153.84
A10: =MID(CELL("filename",A10),FIND("]",CELL("filename",A10))+1,256) -> UFB-7 Personnel Costs | B10: =ROW() -> 10 | C10: ='Cover Page'!K6 -> 1346 | D10: ='Cover Page'!K4 -> 2017 | E10: ufb | F10: bpc | G10: po | H10: ='Cover Page'!M38 -> 00:00:00 | J10: Police Officers (Including Superior Officers) | N10: 0.00
A11: =MID(CELL("filename",A11),FIND("]",CELL("filename",A11))+1,256) -> UFB-7 Personnel Costs | B11: =ROW() -> 11 | C11: ='Cover Page'!K6 -> 1346 | D11: ='Cover Page'!K4 -> 2017 | E11: ufb | F11: bpc | G11: ff | H11: ='Cover Page'!M38 -> 00:00:00 | J11: Fire Fighters (Including Superior Officers) | N11: 0.00
A12: =MID(CELL("filename",A12),FIND("]",CELL("filename",A12))+1,256) -> UFB-7 Personnel Costs | B12: =ROW() -> 12 | C12: ='Cover Page'!K6 -> 1346 | D12: ='Cover Page'!K4 -> 2017 | E12: ufb | F12: bpc | G12: auenl | H12: ='Cover Page'!M38 -> 00:00:00 | J12: All Other Union Employees not listed above | L12: 1.00 | M12: 1.00 | N12: 0.00
A13: =MID(CELL("filename",A13),FIND("]",CELL("filename",A13))+1,256) -> UFB-7 Personnel Costs | B13: =ROW() -> 13 | C13: ='Cover Page'!K6 -> 1346 | D13: ='Cover Page'!K4 -> 2017 | E13: ufb | F13: bpc | G13: anuenl | H13: ='Cover Page'!M38 -> 00:00:00 | J13: All Other Non-Union Employees not listed above | N13: 74,064.94 | O13: =13902+40000+200 -> $54,102.00 | P13: $1,390.00 | Q13: $5,072.00 | R13: =10056-800.2 -> $9,255.80 | S13: =(O13*0.0765)+(P13*0.0765) -> $4,245.14
A14: UFB-7 Personnel Costs | B14: =ROW() -> 14 | C14: ='Cover Page'!K6 -> 1346 | D14: ='Cover Page'!K4 -> 2017 | E14: ufb | F14: bpc | G14: totpc | H14: ='Cover Page'!M38 -> 00:00:00 | J14: Totals | L14: =SUM(L8:L13) -> 2.00 | M14: 11.00 | N14: 252,636.60 | O14: $177,297.00 | P14: $5,903.00 | Q14: $11,165.00 | R14: $44,256.80 | S14: $14,014.80
A15: UFB-7 Personnel Costs | B15: =ROW() -> 15 | C15: ='Cover Page'!K6 -> 1346 | D15: ='Cover Page'!K4 -> 2017 | E15: ufb | F15: bpc | H15: ='Cover Page'!M38 -> 00:00:00
A16: UFB-7 Personnel Costs | B16: =ROW() -> 16 | C16: ='Cover Page'!K6 -> 1346 | D16: ='Cover Page'!K4 -> 2017 | E16: ufb | F16: bpc | G16: civser | H16: ='Cover Page'!M38 -> 00:00:00 | J16: Is the Local Government required to comply with NJSA 11A (Civil Service)? - YES or NO | Q16: NO
A17: UFB-7 Personnel Costs | B17: =ROW() -> 17 | C17: ='Cover Page'!K6 -> 1346 | D17: ='Cover Page'!K4 -> 2017 | E17: ufb | F17: bpc | H17: ='Cover Page'!M38 -> 00:00:00
A18: UFB-7 Personnel Costs | B18: =ROW() -> 18 | C18: ='Cover Page'!K6 -> 1346 | D18: ='Cover Page'!K4 -> 2017 | E18: ufb | F18: bpc | H18: ='Cover Page'!M38 -> 00:00:00 | J18: Note - Base Pay is the annualized rate of pay to which overtime (if eligible) and/or pension is calculated. Either calculation is fine at the discretion of the Local Unit.
A19: UFB-7 Personnel Costs | B19: =ROW() -> 19 | C19: ='Cover Page'!K6 -> 1346 | D19: ='Cover Page'!K4 -> 2017 | E19: ufb | F19: bpc | H19: ='Cover Page'!M38 -> 00:00:00 | J19: Overtime and other compensation is any other item that is charged as a salary and wage expense but not included in Base Pay.
J26: Sheet UFB-7

Sheet UFB-8 Health Benefits
A1: =MID(CELL("filename",A2),FIND("]",CELL("filename",A2))+1,256) -> UFB-8 Health Benefits | B1: =ROW() -> 1 | C1: ='Cover Page'!K6 -> 1346 | D1: ='Cover Page'!K4 -> 2017 | E1: ufb | H1: ='Cover Page'!M38 -> 00:00:00 | J1: USER FRIENDLY BUDGET SECTION - HEALTH BENEFITS
A2: =MID(CELL("filename",A2),FIND("]",CELL("filename",A2))+1,256) -> UFB-8 Health Benefits | B2: =ROW() -> 2 | C2: ='Cover Page'!K6 -> 1346 | D2: ='Cover Page'!K4 -> 2017 | E2: ufb | H2: ='Cover Page'!M38 -> 00:00:00 | K2: Current Year # of Covered Members (Medical & Rx) | L2: Current Year Annual Cost Estimate per Employee | M2: Total Current Year Cost | N2: Prior Year # of Covered Members (Medical & Rx) | O2: Prior Year Annual Cost per Employee (Average) | P2: Total Prior Year Cost
A3: =MID(CELL("filename",A3),FIND("]",CELL("filename",A3))+1,256) -> UFB-8 Health Benefits | B3: =ROW() -> 3 | C3: ='Cover Page'!K6 -> 1346 | D3: ='Cover Page'!K4 -> 2017 | E3: ufb | F3: hb | H3: ='Cover Page'!M38 -> 00:00:00
A4: UFB-8 Health Benefits | B4: =ROW() -> 4 | C4: ='Cover Page'!K6 -> 1346 | D4: ='Cover Page'!K4 -> 2017 | E4: ufb | H4: ='Cover Page'!M38 -> 00:00:00 | J4: Active Employees - Health Benefits - Annual Cost
A5: UFB-8 Health Benefits | B5: =ROW() -> 5 | C5: ='Cover Page'!K6 -> 1346 | D5: ='Cover Page'!K4 -> 2017 | E5: ufb | F5: aehb | G5: sc | H5: ='Cover Page'!M38 -> 00:00:00 | J5: Single Coverage | K5: 1.00 | L5: $10,056.00 | M5: =K5*L5 -> $10,056.00 | N5: 2.00 | P5: =N5*O5 -> $0.00
A6: UFB-8 Health Benefits | B6: =ROW() -> 6 | C6: ='Cover Page'!K6 -> 1346 | D6: ='Cover Page'!K4 -> 2017 | E6: ufb | F6: aehb | G6: pc | H6: ='Cover Page'!M38 -> 00:00:00 | J6: Parent & Child | K6: 1.00 | L6: $38,256.00 | M6: =K6*L6 -> $38,256.00 | N6: 1.00 | P6: =N6*O6 -> $0.00
A7: UFB-8 Health Benefits | B7: =ROW() -> 7 | C7: ='Cover Page'!K6 -> 1346 | D7: ='Cover Page'!K4 -> 2017 | E7: ufb | F7: aehb | G7: es | H7: ='Cover Page'!M38 -> 00:00:00 | J7: Employee & Spouse (or Partner) | M7: =K7*L7 -> $0.00 | P7: =N7*O7 -> $0.00
A8: UFB-8 Health Benefits | B8: =ROW() -> 8 | C8: ='Cover Page'!K6 -> 1346 | D8: ='Cover Page'!K4 -> 2017 | E8: ufb | F8: aehb | G8: fam | H8: ='Cover Page'!M38 -> 00:00:00 | J8: Family | M8: =K8*L8 -> $0.00 | P8: =N8*O8 -> $0.00
A9: UFB-8 Health Benefits | B9: =ROW() -> 9 | C9: ='Cover Page'!K6 -> 1346 | D9: ='Cover Page'!K4 -> 2017 | E9: ufb | F9: aehb | G9: ccsc | H9: ='Cover Page'!M38 -> 00:00:00 | J9: Employee Cost Sharing Contribution (enter as negative - ) | M9: ($3,726.00)
A10: =MID(CELL("filename",A10),FIND("]",CELL("filename",A10))+1,256) -> UFB-8 Health Benefits | B10: =ROW() -> 10 | C10: ='Cover Page'!K6 -> 1346 | D10: ='Cover Page'!K4 -> 2017 | E10: ufb | F10: aehb | G10: subtot | H10: ='Cover Page'!M38 -> 00:00:00 | J10: Subtotal | K10: =SUM(K5:K8) -> 2.00 | M10: =SUM(M5:M9) -> $44,586.00 | N10: =SUM(N5:N8) -> 3.00 | P10: =SUM(P5:P9) -> $0.00
A11: =MID(CELL("filename",A11),FIND("]",CELL("filename",A11))+1,256) -> UFB-8 Health Benefits | B11: =ROW() -> 11 | C11: ='Cover Page'!K6 -> 1346 | D11: ='Cover Page'!K4 -> 2017 | E11: ufb | F11: hb | G11: cao | H11: ='Cover Page'!M38 -> 00:00:00
A12: =MID(CELL("filename",A12),FIND("]",CELL("filename",A12))+1,256) -> UFB-8 Health Benefits | B12: =ROW() -> 12 | C12: ='Cover Page'!K6 -> 1346 | D12: ='Cover Page'!K4 -> 2017 | E12: ufb | H12: ='Cover Page'!M38 -> 00:00:00 | J12: Elected Officials - Health Benefits - Annual Cost
A13: =MID(CELL("filename",A13),FIND("]",CELL("filename",A13))+1,256) -> UFB-8 Health Benefits | B13: =ROW() -> 13 | C13: ='Cover Page'!K6 -> 1346 | D13: ='Cover Page'!K4 -> 2017 | E13: ufb | F13: eohb | G13: sc | H13: ='Cover Page'!M38 -> 00:00:00 | J13: Single Coverage | M13: =K13*L13 -> $0.00 | P13: =N13*O13 -> $0.00
A14: UFB-8 Health Benefits | B14: =ROW() -> 14 | C14: ='Cover Page'!K6 -> 1346 | D14: ='Cover Page'!K4 -> 2017 | E14: ufb | F14: eohb | G14: pc | H14: ='Cover Page'!M38 -> 00:00:00 | J14: Parent & Child | M14: =K14*L14 -> $0.00 | P14: =N14*O14 -> $0.00
A15: UFB-8 Health Benefits | B15: =ROW() -> 15 | C15: ='Cover Page'!K6 -> 1346 | D15: ='Cover Page'!K4 -> 2017 | E15: ufb | F15: eohb | G15: es | H15: ='Cover Page'!M38 -> 00:00:00 | J15: Employee & Spouse (or Partner) | M15: =K15*L15 -> $0.00 | P15: =N15*O15 -> $0.00
A16: UFB-8 Health Benefits | B16: =ROW() -> 16 | C16: ='Cover Page'!K6 -> 1346 | D16: ='Cover Page'!K4 -> 2017 | E16: ufb | F16: eohb | G16: fam | H16: ='Cover Page'!M38 -> 00:00:00 | J16: Family | M16: =K16*L16 -> $0.00 | P16: =N16*O16 -> $0.00
A17: UFB-8 Health Benefits | B17: =ROW() -> 17 | C17: ='Cover Page'!K6 -> 1346 | D17: ='Cover Page'!K4 -> 2017 | E17: ufb | F17: eohb | G17: ccsc | H17: ='Cover Page'!M38 -> 00:00:00 | J17: Employee Cost Sharing Contribution (enter as negative - )
A18: UFB-8 Health Benefits | B18: =ROW() -> 18 | C18: ='Cover Page'!K6 -> 1346 | D18: ='Cover Page'!K4 -> 2017 | E18: ufb | F18: eohb | G18: subtot | H18: ='Cover Page'!M38 -> 00:00:00 | J18: Subtotal | K18: =SUM(K13:K16) -> 0.00 | M18: =SUM(M13:M17) -> $0.00 | N18: =SUM(N13:N16) -> 0.00 | P18: =SUM(P13:P17) -> $0.00
A19: UFB-8 Health Benefits | B19: =ROW() -> 19 | C19: ='Cover Page'!K6 -> 1346 | D19: ='Cover Page'!K4 -> 2017 | E19: ufb | F19: hb | H19: ='Cover Page'!M38 -> 00:00:00
A20: UFB-8 Health Benefits | B20: =ROW() -> 20 | C20: ='Cover Page'!K6 -> 1346 | D20: ='Cover Page'!K4 -> 2017 | E20: ufb | H20: ='Cover Page'!M38 -> 00:00:00 | J20: Retirees - Health Benefits - Annual Cost
A21: UFB-8 Health Benefits | B21: =ROW() -> 21 | C21: ='Cover Page'!K6 -> 1346 | D21: ='Cover Page'!K4 -> 2017 | E21: ufb | F21: rhb | G21: sc | H21: ='Cover Page'!M38 -> 00:00:00 | J21: Single Coverage | K21: 1 | L21: $10,056.00 | M21: =K21*L21 -> $10,056.00 | N21: 0 | P21: =N21*O21 -> $0.00
A22: UFB-8 Health Benefits | B22: =ROW() -> 22 | C22: ='Cover Page'!K6 -> 1346 | D22: ='Cover Page'!K4 -> 2017 | E22: ufb | F22: rhb | G22: pc | H22: ='Cover Page'!M38 -> 00:00:00 | J22: Parent & Child | M22: =K22*L22 -> $0.00 | P22: =N22*O22 -> $0.00
A23: UFB-8 Health Benefits | B23: =ROW() -> 23 | C23: ='Cover Page'!K6 -> 1346 | D23: ='Cover Page'!K4 -> 2017 | E23: ufb | F23: rhb | G23: es | H23: ='Cover Page'!M38 -> 00:00:00 | J23: Employee & Spouse (or Partner) | M23: =K23*L23 -> $0.00 | P23: =N23*O23 -> $0.00
A24: UFB-8 Health Benefits | B24: =ROW() -> 24 | C24: ='Cover Page'!K6 -> 1346 | D24: ='Cover Page'!K4 -> 2017 | E24: ufb | F24: rhb | G24: fam | H24: ='Cover Page'!M38 -> 00:00:00 | J24: Family | M24: =K24*L24 -> $0.00 | P24: =N24*O24 -> $0.00
A25: UFB-8 Health Benefits | B25: =ROW() -> 25 | C25: ='Cover Page'!K6 -> 1346 | D25: ='Cover Page'!K4 -> 2017 | E25: ufb | F25: rhb | G25: ccsc | H25: ='Cover Page'!M38 -> 00:00:00 | J25: Employee Cost Sharing Contribution (enter as negative - ) | M25: ($300.00)
A26: UFB-8 Health Benefits | B26: =ROW() -> 26 | C26: ='Cover Page'!K6 -> 1346 | D26: ='Cover Page'!K4 -> 2017 | E26: ufb | F26: rhb | G26: subtot | H26: ='Cover Page'!M38 -> 00:00:00 | J26: Subtotal | K26: =SUM(K21:K24) -> 1.00 | M26: =SUM(M21:M25) -> $9,756.00 | N26: =SUM(N21:N24) -> 0.00 | P26: =SUM(P21:P25) -> $0.00
A27: UFB-8 Health Benefits | B27: =ROW() -> 27 | C27: ='Cover Page'!K6 -> 1346 | D27: ='Cover Page'!K4 -> 2017 | E27: ufb | F27: hb | G27: board | H27: ='Cover Page'!M38 -> 00:00:00
A28: UFB-8 Health Benefits | B28: =ROW() -> 28 | C28: ='Cover Page'!K6 -> 1346 | D28: ='Cover Page'!K4 -> 2017 | E28: ufb | F28: gtot | G28: tot | H28: ='Cover Page'!M38 -> 00:00:00 | J28: GRAND TOTAL | K28: =+K26+K18+K10 -> 3.00 | M28: =+M26+M18+M10 -> $54,342.00 | N28: =+N26+N18+N10 -> 3.00 | P28: =+P26+P18+P10 -> $0.00
A29: UFB-8 Health Benefits | B29: =ROW() -> 29 | C29: ='Cover Page'!K6 -> 1346 | D29: ='Cover Page'!K4 -> 2017 | E29: ufb | H29: ='Cover Page'!M38 -> 00:00:00
A30: UFB-8 Health Benefits | B30: =ROW() -> 30 | C30: ='Cover Page'!K6 -> 1346 | D30: ='Cover Page'!K4 -> 2017 | E30: ufb | H30: ='Cover Page'!M38 -> 00:00:00 | J30: Note - other health insurances such as dental and vision are not included in this analysis unless included in the employees total premium. Therefore, the total from this sheet may not agree with the budgeted appropriation. | S30: YES
A31: UFB-8 Health Benefits | B31: =ROW() -> 31 | C31: ='Cover Page'!K6 -> 1346 | D31: ='Cover Page'!K4 -> 2017 | E31: ufb | F31: surv | G31: mc-shbp | H31: ='Cover Page'!M38 -> 00:00:00 | J31: Is medical coverage provided by the SHBP (Yes or No)? | S31: NO
A32: UFB-8 Health Benefits | B32: =ROW() -> 32 | C32: ='Cover Page'!K6 -> 1346 | D32: ='Cover Page'!K4 -> 2017 | E32: ufb | F32: surv | G32: pd-shbp | H32: ='Cover Page'!M38 -> 00:00:00 | J32: Is prescription drug coverage provided by the SHBP (Yes or No)?
K34: Sheet UFB-8

Sheet UFB-9 Accum. Absence Liability
A1: =MID(CELL("filename",A2),FIND("]",CELL("filename",A2))+1,256) -> UFB-9 Accum. Absence Liability | B1: =ROW() -> 1 | C1: ='Cover Page'!K6 -> 1346 | D1: ='Cover Page'!K4 -> 2017 | E1: ufb | F1: aal | H1: ='Cover Page'!M38 -> 00:00:00 | J1: USER FRIENDLY BUDGET SECTION
A2: =MID(CELL("filename",A2),FIND("]",CELL("filename",A2))+1,256) -> UFB-9 Accum. Absence Liability | B2: =ROW() -> 2 | C2: ='Cover Page'!K6 -> 1346 | D2: ='Cover Page'!K4 -> 2017 | E2: ufb | F2: aal | H2: ='Cover Page'!M38 -> 00:00:00 | J2: ACCUMULATED ABSENCE LIABILITY
A3: =MID(CELL("filename",A3),FIND("]",CELL("filename",A3))+1,256) -> UFB-9 Accum. Absence Liability | B3: =ROW() -> 3 | C3: ='Cover Page'!K6 -> 1346 | D3: ='Cover Page'!K4 -> 2017 | E3: ufb | F3: aal | H3: ='Cover Page'!M38 -> 00:00:00 | N3: Legal basis for benefit
A4: UFB-9 Accum. Absence Liability | B4: =ROW() -> 4 | C4: ='Cover Page'!K6 -> 1346 | D4: ='Cover Page'!K4 -> 2017 | E4: ufb | F4: aal | H4: ='Cover Page'!M38 -> 00:00:00 | N4: (check applicable items)
A5: UFB-9 Accum. Absence Liability | B5: =ROW() -> 5 | C5: ='Cover Page'!K6 -> 1346 | D5: ='Cover Page'!K4 -> 2017 | E5: ufb | F5: aal | H5: ='Cover Page'!M38 -> 00:00:00 | K5: Organization/Individuals Eligible for Benefit | L5: Gross Days of Accumulated Absence | M5: Dollar Value of Compensated Absences | N5: Approved Labor Agreement | O5: Local Ordinance | P5: Individual Employment Agreement
A6: UFB-9 Accum. Absence Liability | B6: =ROW() -> 6 | C6: ='Cover Page'!K6 -> 1346 | D6: ='Cover Page'!K4 -> 2017 | E6: ufb | F6: aal | G6: ciaal | H6: ='Cover Page'!M38 -> 00:00:00 | K6: *Shrewsbury Township's personnel ordinance does not allow | L6: 0.00 | M6: $0.00 | O6: *
A7: UFB-9 Accum. Absence Liability | B7: =ROW() -> 7 | C7: ='Cover Page'!K6 -> 1346 | D7: ='Cover Page'!K4 -> 2017 | E7: ufb | F7: aal | G7: ciaal | H7: ='Cover Page'!M38 -> 00:00:00 | K7: for accumulated sick or vacation time. Any time not used by
A8: =MID(CELL("filename",A8),FIND("]",CELL("filename",A8))+1,256) -> UFB-9 Accum. Absence Liability | B8: =ROW() -> 8 | C8: ='Cover Page'!K6 -> 1346 | D8: ='Cover Page'!K4 -> 2017 | E8: ufb | F8: aal | G8: ciaal | H8: ='Cover Page'!M38 -> 00:00:00 | K8: the end of the calendar (budget) year is lost.
A9: =MID(CELL("filename",A9),FIND("]",CELL("filename",A9))+1,256) -> UFB-9 Accum. Absence Liability | B9: =ROW() -> 9 | C9: ='Cover Page'!K6 -> 1346 | D9: ='Cover Page'!K4 -> 2017 | E9: ufb | F9: aal | G9: ciaal | H9: ='Cover Page'!M38 -> 00:00:00
A10: =MID(CELL("filename",A10),FIND("]",CELL("filename",A10))+1,256) -> UFB-9 Accum. Absence Liability | B10: =ROW() -> 10 | C10: ='Cover Page'!K6 -> 1346 | D10: ='Cover Page'!K4 -> 2017 | E10: ufb | F10: aal | G10: ciaal | H10: ='Cover Page'!M38 -> 00:00:00
A11: =MID(CELL("filename",A11),FIND("]",CELL("filename",A11))+1,256) -> UFB-9 Accum. Absence Liability | B11: =ROW() -> 11 | C11: ='Cover Page'!K6 -> 1346 | D11: ='Cover Page'!K4 -> 2017 | E11: ufb | F11: aal | G11: ciaal | H11: ='Cover Page'!M38 -> 00:00:00
A12: UFB-9 Accum. Absence Liability | B12: =ROW() -> 12 | C12: ='Cover Page'!K6 -> 1346 | D12: ='Cover Page'!K4 -> 2017 | E12: ufb | F12: aal | G12: ciaal | H12: ='Cover Page'!M38 -> 00:00:00
A13: UFB-9 Accum. Absence Liability | B13: =ROW() -> 13 | C13: ='Cover Page'!K6 -> 1346 | D13: ='Cover Page'!K4 -> 2017 | E13: ufb | F13: aal | G13: ciaal | H13: ='Cover Page'!M38 -> 00:00:00
A14: UFB-9 Accum. Absence Liability | B14: =ROW() -> 14 | C14: ='Cover Page'!K6 -> 1346 | D14: ='Cover Page'!K4 -> 2017 | E14: ufb | F14: aal | G14: ciaal | H14: ='Cover Page'!M38 -> 00:00:00
A15: UFB-9 Accum. Absence Liability | B15: =ROW() -> 15 | C15: ='Cover Page'!K6 -> 1346 | D15: ='Cover Page'!K4 -> 2017 | E15: ufb | F15: aal | G15: ciaal | H15: ='Cover Page'!M38 -> 00:00:00
A16: UFB-9 Accum. Absence Liability | B16: =ROW() -> 16 | C16: ='Cover Page'!K6 -> 1346 | D16: ='Cover Page'!K4 -> 2017 | E16: ufb | F16: aal | G16: ciaal | H16: ='Cover Page'!M38 -> 00:00:00
A17: UFB-9 Accum. Absence Liability | B17: =ROW() -> 17 | C17: ='Cover Page'!K6 -> 1346 | D17: ='Cover Page'!K4 -> 2017 | E17: ufb | F17: aal | G17: ciaal | H17: ='Cover Page'!M38 -> 00:00:00
A18: UFB-9 Accum. Absence Liability | B18: =ROW() -> 18 | C18: ='Cover Page'!K6 -> 1346 | D18: ='Cover Page'!K4 -> 2017 | E18: ufb | F18: aal | G18: ciaal | H18: ='Cover Page'!M38 -> 00:00:00
A19: UFB-9 Accum. Absence Liability | B19: =ROW() -> 19 | C19: ='Cover Page'!K6 -> 1346 | D19: ='Cover Page'!K4 -> 2017 | E19: ufb | F19: aal | G19: ciaal | H19: ='Cover Page'!M38 -> 00:00:00
A32: UFB-9 Accum. Absence Liability | B32: =ROW() -> 32 | C32: ='Cover Page'!K6 -> 1346 | D32: ='Cover Page'!K4 -> 2017 | E32: ufb | F32: aal | G32: ciaal | H32: ='Cover Page'!M38 -> 00:00:00
A33: UFB-9 Accum. Absence Liability | B33: =ROW() -> 33 | C33: ='Cover Page'!K6 -> 1346 | D33: ='Cover Page'!K4 -> 2017 | E33: ufb | F33: aal | G33: ciaal | H33: ='Cover Page'!M38 -> 00:00:00
A34: UFB-9 Accum. Absence Liability | B34: =ROW() -> 34 | C34: ='Cover Page'!K6 -> 1346 | D34: ='Cover Page'!K4 -> 2017 | E34: ufb | F34: aal | G34: ciaal | H34: ='Cover Page'!M38 -> 00:00:00
A35: UFB-9 Accum. Absence Liability | B35: =ROW() -> 35 | C35: ='Cover Page'!K6 -> 1346 | D35: ='Cover Page'!K4 -> 2017 | E35: ufb | F35: aal | G35: ciaal | H35: ='Cover Page'!M38 -> 00:00:00
A36: UFB-9 Accum. Absence Liability | B36: =ROW() -> 36 | C36: ='Cover Page'!K6 -> 1346 | D36: ='Cover Page'!K4 -> 2017 | E36: ufb | F36: aal | G36: ciaal | H36: ='Cover Page'!M38 -> 00:00:00
A37: UFB-9 Accum. Absence Liability | B37: =ROW() -> 37 | C37: ='Cover Page'!K6 -> 1346 | D37: ='Cover Page'!K4 -> 2017 | E37: ufb | F37: aal | G37: ciaal | H37: ='Cover Page'!M38 -> 00:00:00
A38: UFB-9 Accum. Absence Liability | B38: =ROW() -> 38 | C38: ='Cover Page'!K6 -> 1346 | D38: ='Cover Page'!K4 -> 2017 | E38: ufb | F38: aal | G38: totaal | H38: ='Cover Page'!M38 -> 00:00:00 | K38: Totals | L38: =SUM(L6:L37) -> 0.00 | M38: =SUM(M6:M37) -> $0.00
A39: UFB-9 Accum. Absence Liability | B39: =ROW() -> 39 | C39: ='Cover Page'!K6 -> 1346 | D39: ='Cover Page'!K4 -> 2017 | E39: ufb | F39: aal | H39: ='Cover Page'!M38 -> 00:00:00
A40: UFB-9 Accum. Absence Liability | B40: =ROW() -> 40 | C40: ='Cover Page'!K6 -> 1346 | D40: ='Cover Page'!K4 -> 2017 | E40: ufb | F40: aal | G40: tfrprior | H40: ='Cover Page'!M38 -> 00:00:00 | L40: ="Total Funds Reserved as of end of "&'Cover Page'!K4-1 -> Total Funds Reserved as of end of 2016
A41: UFB-9 Accum. Absence Liability | B41: =ROW() -> 41 | C41: ='Cover Page'!K6 -> 1346 | D41: ='Cover Page'!K4 -> 2017 | E41: ufb | F41: aal | G41: tfacurr | H41: ='Cover Page'!M38 -> 00:00:00 | L41: ="Total Funds Appropriated in "&'Cover Page'!K4 -> Total Funds Appropriated in 2017
L42: UFB-9 Accumulated Absence Liability

Sheet UFB-10 Debt
A1: =MID(CELL("filename",A2),FIND("]",CELL("filename",A2))+1,256) -> UFB-10 Debt | B1: =ROW() -> 1 | C1: ='Cover Page'!K6 -> 1346 | D1: ='Cover Page'!K4 -> 2017 | E1: ufb | F1: outdebt | H1: ='Cover Page'!M38 -> 00:00:00 | J1: USER FRIENDLY BUDGET SECTION - OUTSTANDING DEBT; PER CAPITA AND BUDGET IMPACT
A2: =MID(CELL("filename",A2),FIND("]",CELL("filename",A2))+1,256) -> UFB-10 Debt | B2: =ROW() -> 2 | C2: ='Cover Page'!K6 -> 1346 | D2: ='Cover Page'!K4 -> 2017 | E2: ufb | F2: outdebt | H2: ='Cover Page'!M38 -> 00:00:00 | K2: Gross | M2: Net | P2: Current Year | Q2: =""&'Cover Page'!K4+1 -> 2018 | R2: =""&'Cover Page'!K4+2&" " -> 2019 | S2: All Additional Future
A3: =MID(CELL("filename",A3),FIND("]",CELL("filename",A3))+1,256) -> UFB-10 Debt | B3: =ROW() -> 3 | C3: ='Cover Page'!K6 -> 1346 | D3: ='Cover Page'!K4 -> 2017 | E3: ufb | F3: outdebt | H3: ='Cover Page'!M38 -> 00:00:00 | K3: Debt | L3: Deductions | M3: Debt | P3: Budget | Q3: Budget | R3: Budget | S3: Years' Budgets
A4: UFB-10 Debt | B4: =ROW() -> 4 | C4: ='Cover Page'!K6 -> 1346 | D4: ='Cover Page'!K4 -> 2017 | E4: ufb | F4: outdebt | H4: ='Cover Page'!M38 -> 00:00:00
A5: UFB-10 Debt | B5: =ROW() -> 5 | C5: ='Cover Page'!K6 -> 1346 | D5: ='Cover Page'!K4 -> 2017 | E5: ufb | F5: outdebt | H5: ='Cover Page'!M38 -> 00:00:00
A6: UFB-10 Debt | B6: =ROW() -> 6 | C6: ='Cover Page'!K6 -> 1346 | D6: ='Cover Page'!K4 -> 2017 | E6: ufb | F6: outdebt | G6: lsd | H6: ='Cover Page'!M38 -> 00:00:00 | I6: ufp | J6: Local School Debt | M6: =K6-L6 -> $0.00 | O6: Utility Fund - Principal
A7: UFB-10 Debt | B7: =ROW() -> 7 | C7: ='Cover Page'!K6 -> 1346 | D7: ='Cover Page'!K4 -> 2017 | E7: ufb | F7: outdebt | G7: rsd | H7: ='Cover Page'!M38 -> 00:00:00 | I7: ufi | J7: Regional School Debt | K7: $136,390.07 | L7: $136,390.07 | M7: =K7-L7 -> $0.00 | O7: Utility Fund - Interest
A8: UFB-10 Debt | B8: =ROW() -> 8 | C8: ='Cover Page'!K6 -> 1346 | D8: ='Cover Page'!K4 -> 2017 | E8: ufb | F8: outdebt | H8: ='Cover Page'!M38 -> 00:00:00 | I8: banp | O8: Bond Anticipation Notes - Principal
A9: UFB-10 Debt | B9: =ROW() -> 9 | C9: ='Cover Page'!K6 -> 1346 | D9: ='Cover Page'!K4 -> 2017 | E9: ufb | F9: outdebt | H9: ='Cover Page'!M38 -> 00:00:00 | I9: bani | J9: Utility Fund Debt | O9: Bond Anticipation Notes - Interest
A10: =MID(CELL("filename",A10),FIND("]",CELL("filename",A10))+1,256) -> UFB-10 Debt | B10: =ROW() -> 10 | C10: ='Cover Page'!K6 -> 1346 | D10: ='Cover Page'!K4 -> 2017 | E10: ufb | F10: outdebt | G10: ufd | H10: ='Cover Page'!M38 -> 00:00:00 | I10: bp | J10: ='UFB-2 Revenue Summary'!T3 -> 0 | M10: =K10-L10 -> $0.00 | O10: Bonds - Principal
A11: UFB-10 Debt | B11: =ROW() -> 11 | C11: ='Cover Page'!K6 -> 1346 | D11: ='Cover Page'!K4 -> 2017 | E11: ufb | F11: outdebt | G11: ufd | H11: ='Cover Page'!M38 -> 00:00:00 | I11: bi | J11: ='UFB-2 Revenue Summary'!U3 -> 0 | M11: $0.00 | O11: Bonds - Interest
A12: UFB-10 Debt | B12: =ROW() -> 12 | C12: ='Cover Page'!K6 -> 1346 | D12: ='Cover Page'!K4 -> 2017 | E12: ufb | F12: outdebt | G12: ufd | H12: ='Cover Page'!M38 -> 00:00:00 | I12: lodp | J12: ='UFB-2 Revenue Summary'!V3 -> 0 | M12: $0.00 | O12: Loans & Other Debt - Principal
A13: UFB-10 Debt | B13: =ROW() -> 13 | C13: ='Cover Page'!K6 -> 1346 | D13: ='Cover Page'!K4 -> 2017 | E13: ufb | F13: outdebt | G13: mc | H13: ='Cover Page'!M36 -> 00:00:00 | I13: lodi | J13: ='UFB-2 Revenue Summary'!W3 -> 0 | M13: $0.00 | O13: Loans & Other Debt - Interest
A14: UFB-10 Debt | B14: =ROW() -> 14 | C14: ='Cover Page'!K6 -> 1346 | D14: ='Cover Page'!K4 -> 2017 | E14: ufb | F14: outdebt | G14: mc | H14: ='Cover Page'!M37 -> 00:00:00 | I14: util5 | J14: ='UFB-2 Revenue Summary'!X3 -> 0 | M14: =K14-L14 -> $0.00
A15: UFB-10 Debt | B15: =ROW() -> 15 | C15: ='Cover Page'!K6 -> 1346 | D15: ='Cover Page'!K4 -> 2017 | E15: ufb | F15: outdebt | G15: mc | H15: ='Cover Page'!M38 -> 00:00:00 | I15: totubl | J15: ='UFB-2 Revenue Summary'!Y3 -> 0 | M15: $0.00 | O15: Total | P15: =SUM(P6:P13) -> $0.00 | Q15: =SUM(Q6:Q13) -> $0.00 | R15: =SUM(R6:R13) -> $0.00 | S15: =SUM(S6:S13) -> $0.00
A16: UFB-10 Debt | B16: =ROW() -> 16 | C16: ='Cover Page'!K6 -> 1346 | D16: ='Cover Page'!K4 -> 2017 | E16: ufb | F16: outdebt | H16: ='Cover Page'!M38 -> 00:00:00 | J16: Municipal Purposes
A17: UFB-10 Debt | B17: =ROW() -> 17 | C17: ='Cover Page'!K6 -> 1346 | D17: ='Cover Page'!K4 -> 2017 | E17: ufb | F17: outdebt | G17: mpda | H17: ='Cover Page'!M38 -> 00:00:00 | I17: totprin | J17: Debt Authorized | K17: $144,520.50 | L17: $0.00 | M17: =K17-L17 -> $144,520.50 | O17: Total Principal | P17: =P6+P8+P10+P12 -> $0.00 | Q17: $0.00 | R17: $0.00 | S17: $0.00
A18: UFB-10 Debt | B18: =ROW() -> 18 | C18: ='Cover Page'!K6 -> 1346 | D18: ='Cover Page'!K4 -> 2017 | E18: ufb | F18: outdebt | G18: mpno | H18: ='Cover Page'!M38 -> 00:00:00 | I18: totint | J18: Notes Outstanding | L18: $0.00 | M18: =K18-L18 -> $0.00 | O18: Total Interest | P18: $0.00 | Q18: $0.00 | R18: $0.00 | S18: $0.00
A19: UFB-10 Debt | B19: =ROW() -> 19 | C19: ='Cover Page'!K6 -> 1346 | D19: ='Cover Page'!K4 -> 2017 | E19: ufb | F19: outdebt | G19: mpdo | H19: ='Cover Page'!M38 -> 00:00:00 | I19: ptcyb | J19: Bonds Outstanding | K19: $651,000.00 | L19: $0.00 | M19: =K19-L19 -> $651,000.00 | O19: % of Total Current Year Budget | P19: =+P15/'UFB-3 Appropriations Summary'!R28 -> 0.00%
A20: UFB-10 Debt | B20: =ROW() -> 20 | C20: ='Cover Page'!K6 -> 1346 | D20: ='Cover Page'!K4 -> 2017 | E20: ufb | F20: outdebt | G20: mplod | H20: ='Cover Page'!M38 -> 00:00:00 | I20: lod | J20: Loans and Other Debt | K20: $28,000.00 | L20: $28,000.00 | M20: =K20-L20 -> $0.00
A21: UFB-10 Debt | B21: =ROW() -> 21 | C21: ='Cover Page'!K6 -> 1346 | D21: ='Cover Page'!K4 -> 2017 | E21: ufb | F21: outdebt | H21: ='Cover Page'!M38 -> 00:00:00 | O21: Description | P21: Debt Not Listed Above
A22: UFB-10 Debt | B22: =ROW() -> 22 | C22: ='Cover Page'!K6 -> 1346 | D22: ='Cover Page'!K4 -> 2017 | E22: ufb | F22: outdebt | G22: totcurr | H22: ='Cover Page'!M38 -> 00:00:00 | I22: totgg | J22: Total (Current Year) | K22: =SUM(K6:K20) -> $959,910.57 | L22: =SUM(L6:L20) -> $164,390.07 | M22: =SUM(M6:M20) -> $795,520.50 | O22: Total Guarantees - Governmental
A23: UFB-10 Debt | B23: =ROW() -> 23 | C23: ='Cover Page'!K6 -> 1346 | D23: ='Cover Page'!K4 -> 2017 | E23: ufb | F23: outdebt | H23: ='Cover Page'!M38 -> 00:00:00 | I23: totgo | O23: Total Guarantees - Other
A24: UFB-10 Debt | B24: =ROW() -> 24 | C24: ='Cover Page'!K6 -> 1346 | D24: ='Cover Page'!K4 -> 2017 | E24: ufb | F24: outdebt | H24: ='Cover Page'!M38 -> 00:00:00 | I24: totcel | O24: Total Capital/Equipment Leases
A25: UFB-10 Debt | B25: =ROW() -> 25 | C25: ='Cover Page'!K6 -> 1346 | D25: ='Cover Page'!K4 -> 2017 | E25: ufb | F25: outdebt | G25: pop | H25: ='Cover Page'!M38 -> 00:00:00 | I25: tototh | J25: Population (2010 census) | K25: 1,141 | O25: Total Other
A26: UFB-10 Debt | B26: =ROW() -> 26 | C26: ='Cover Page'!K6 -> 1346 | D26: ='Cover Page'!K4 -> 2017 | E26: ufb | F26: outdebt | H26: ='Cover Page'!M38 -> 00:00:00
A27: UFB-10 Debt | B27: =ROW() -> 27 | C27: ='Cover Page'!K6 -> 1346 | D27: ='Cover Page'!K4 -> 2017 | E27: ufb | F27: outdebt | G27: pcgd | H27: ='Cover Page'!M38 -> 00:00:00 | I27: pcgd | J27: Per Capita Gross Debt | K27: =K22/K25 -> $841.29 | O27: Bond Rating | P27: Moody's | Q27: Standard & Poors | R27: Fitch
A28: UFB-10 Debt | B28: =ROW() -> 28 | C28: ='Cover Page'!K6 -> 1346 | D28: ='Cover Page'!K4 -> 2017 | E28: ufb | F28: outdebt | G28: pcnd | H28: ='Cover Page'!M38 -> 00:00:00 | I28: ratcurr | J28: Per Capita Net Debt | K28: =M22/K25 -> $697.21 | O28: Rating
A29: UFB-10 Debt | B29: =ROW() -> 29 | C29: ='Cover Page'!K6 -> 1346 | D29: ='Cover Page'!K4 -> 2017 | E29: ufb | F29: outdebt | H29: ='Cover Page'!M38 -> 00:00:00 | I29: ratprior | O29: Year of Last Rating
A30: UFB-10 Debt | B30: =ROW() -> 30 | C30: ='Cover Page'!K6 -> 1346 | D30: ='Cover Page'!K4 -> 2017 | E30: ufb | F30: outdebt | G30: 3yavg | H30: ='Cover Page'!M38 -> 00:00:00 | J30: 3 Yr. Average Property Valuation | L30: $51,909,858.67
A31: UFB-10 Debt | B31: =ROW() -> 31 | C31: ='Cover Page'!K6 -> 1346 | D31: ='Cover Page'!K4 -> 2017 | E31: ufb | F31: outdebt | H31: ='Cover Page'!M38 -> 00:00:00 | I31: nobrat | O31: Mark "X" if Municipality has no bond rating
A32: UFB-10 Debt | B32: =ROW() -> 32 | C32: ='Cover Page'!K6 -> 1346 | D32: ='Cover Page'!K4 -> 2017 | E32: ufb | F32: outdebt | G32: ndp3avg | H32: ='Cover Page'!M38 -> 00:00:00 | I32: ndp3ya | J32: Net Debt as % of 3 Year Avg Property Valuation | L32: =M22/L30 -> 1.53%
A33: UFB-10 Debt | B33: =ROW() -> 33 | C33: ='Cover Page'!K6 -> 1346 | D33: ='Cover Page'!K4 -> 2017 | E33: ufb | F33: outdebt | H33: ='Cover Page'!M38 -> 00:00:00 | O33: Sheet UFB-10
A34: UFB-10 Debt
A35: =MID(CELL("filename",A24),FIND("]",CELL("filename",A24))+1,256) -> UFB-10 Debt
A36: =MID(CELL("filename",A24),FIND("]",CELL("filename",A24))+1,256) -> UFB-10 Debt
A37: UFB-10 Debt
A38: UFB-10 Debt
A39: UFB-10 Debt
A40: UFB-10 Debt
A41: UFB-10 Debt

Sheet UFB-11 Shared Services
A1: =MID(CELL("filename",A2),FIND("]",CELL("filename",A2))+1,256) -> UFB-11 Shared Services | B1: =ROW() -> 1 | C1: ='Cover Page'!K6 -> 1346 | D1: ='Cover Page'!K4 -> 2017 | E1: ufb | F1: ssp | H1: ='Cover Page'!M38 -> 00:00:00 | J1: USER FRIENDLY BUDGET SECTION - SHARED SERVICES PROVIDED AND RECEIVED
A2: =MID(CELL("filename",A2),FIND("]",CELL("filename",A2))+1,256) -> UFB-11 Shared Services | B2: =ROW() -> 2 | C2: ='Cover Page'!K6 -> 1346 | D2: ='Cover Page'!K4 -> 2017 | E2: ufb | F2: ssp | H2: ='Cover Page'!M38 -> 00:00:00
A3: =MID(CELL("filename",A3),FIND("]",CELL("filename",A3))+1,256) -> UFB-11 Shared Services | B3: =ROW() -> 3 | C3: ='Cover Page'!K6 -> 1346 | D3: ='Cover Page'!K4 -> 2017 | E3: ufb | F3: ssp | H3: ='Cover Page'!M38 -> 00:00:00 | J3: Providing or Receiving Services? | K3: Providing Services To/Receiving Services From | L3: Type of Shared Service Provided | M3: Notes (Enter more specifics if needed) | N3: Begin Date | O3: End Date | P3: Amount to be Received/Paid
A4: UFB-11 Shared Services | B4: =ROW() -> 4 | C4: ='Cover Page'!K6 -> 1346 | D4: ='Cover Page'!K4 -> 2017 | E4: ufb | F4: ssp | G4: shareser | H4: ='Cover Page'!M38 -> 00:00:00 | J4: Receiving | K4: Borough of Shrewsbury | L4: Website Maintenance | O4: 2017-12-31 | P4: $1,000.00
A5: UFB-11 Shared Services | B5: =ROW() -> 5 | C5: ='Cover Page'!K6 -> 1346 | D5: ='Cover Page'!K4 -> 2017 | E5: ufb | F5: ssp | G5: shareser | H5: ='Cover Page'!M38 -> 00:00:00 | J5: Receiving | K5: Borough of Shrewsbury | L5: Fire Suppression | O5: 2017-12-31 | P5: $10,000.00
A6: UFB-11 Shared Services | B6: =ROW() -> 6 | C6: ='Cover Page'!K6 -> 1346 | D6: ='Cover Page'!K4 -> 2017 | E6: ufb | F6: ssp | G6: shareser | H6: ='Cover Page'!M38 -> 00:00:00 | J6: Receiving | K6: Borough of Red Bank | L6: Animal Control | O6: 2018-12-31 | P6: $1,780.00
A7: UFB-11 Shared Services | B7: =ROW() -> 7 | C7: ='Cover Page'!K6 -> 1346 | D7: ='Cover Page'!K4 -> 2017 | E7: ufb | F7: ssp | G7: shareser | H7: ='Cover Page'!M38 -> 00:00:00 | J7: Receiving | K7: Borough of Red Bank | L7: Municipal Court | O7: 2017-12-31 | P7: $9,500.00
A8: UFB-11 Shared Services | B8: =ROW() -> 8 | C8: ='Cover Page'!K6 -> 1346 | D8: ='Cover Page'!K4 -> 2017 | E8: ufb | F8: ssp | G8: shareser | H8: ='Cover Page'!M38 -> 00:00:00 | J8: Receiving | K8: Monmouth County Sheriff's Dept. | L8: 911 Dispatch | O8: 2017-12-31 | P8: $3,273.50
A9: UFB-11 Shared Services | B9: =ROW() -> 9 | C9: ='Cover Page'!K6 -> 1346 | D9: ='Cover Page'!K4 -> 2017 | E9: ufb | F9: ssp | G9: shareser | H9: ='Cover Page'!M38 -> 00:00:00
A10: =MID(CELL("filename",A10),FIND("]",CELL("filename",A10))+1,256) -> UFB-11 Shared Services | B10: =ROW() -> 10 | C10: ='Cover Page'!K6 -> 1346 | D10: ='Cover Page'!K4 -> 2017 | E10: ufb | F10: ssp | G10: shareser | H10: ='Cover Page'!M38 -> 00:00:00
A11: =MID(CELL("filename",A11),FIND("]",CELL("filename",A11))+1,256) -> UFB-11 Shared Services | B11: =ROW() -> 11 | C11: ='Cover Page'!K6 -> 1346 | D11: ='Cover Page'!K4 -> 2017 | E11: ufb | F11: ssp | G11: shareser | H11: ='Cover Page'!M38 -> 00:00:00
A12: =MID(CELL("filename",A12),FIND("]",CELL("filename",A12))+1,256) -> UFB-11 Shared Services | B12: =ROW() -> 12 | C12: ='Cover Page'!K6 -> 1346 | D12: ='Cover Page'!K4 -> 2017 | E12: ufb | F12: ssp | G12: shareser | H12: ='Cover Page'!M38 -> 00:00:00
A13: =MID(CELL("filename",A13),FIND("]",CELL("filename",A13))+1,256) -> UFB-11 Shared Services | B13: =ROW() -> 13 | C13: ='Cover Page'!K6 -> 1346 | D13: ='Cover Page'!K4 -> 2017 | E13: ufb | F13: ssp | G13: shareser | H13: ='Cover Page'!M38 -> 00:00:00
A14: UFB-11 Shared Services | B14: =ROW() -> 14 | C14: ='Cover Page'!K6 -> 1346 | D14: ='Cover Page'!K4 -> 2017 | E14: ufb | F14: ssp | G14: shareser | H14: ='Cover Page'!M38 -> 00:00:00
A15: UFB-11 Shared Services | B15: =ROW() -> 15 | C15: ='Cover Page'!K6 -> 1346 | D15: ='Cover Page'!K4 -> 2017 | E15: ufb | F15: ssp | G15: shareser | H15: ='Cover Page'!M38 -> 00:00:00
A16: UFB-11 Shared Services | B16: =ROW() -> 16 | C16: ='Cover Page'!K6 -> 1346 | D16: ='Cover Page'!K4 -> 2017 | E16: ufb | F16: ssp | G16: shareser | H16: ='Cover Page'!M38 -> 00:00:00
A17: UFB-11 Shared Services | B17: =ROW() -> 17 | C17: ='Cover Page'!K6 -> 1346 | D17: ='Cover Page'!K4 -> 2017 | E17: ufb | F17: ssp | G17: shareser | H17: ='Cover Page'!M25 -> 2019-12-31
A18: UFB-11 Shared Services | B18: =ROW() -> 18 | C18: ='Cover Page'!K6 -> 1346 | D18: ='Cover Page'!K4 -> 2017 | E18: ufb | F18: ssp | G18: shareser | H18: ='Cover Page'!M25 -> 2019-12-31
A19: UFB-11 Shared Services | B19: =ROW() -> 19 | C19: ='Cover Page'!K6 -> 1346 | D19: ='Cover Page'!K4 -> 2017 | E19: ufb | F19: ssp | G19: shareser | H19: ='Cover Page'!M25 -> 2019-12-31
A20: UFB-11 Shared Services | B20: =ROW() -> 20 | C20: ='Cover Page'!K6 -> 1346 | D20: ='Cover Page'!K4 -> 2017 | E20: ufb | F20: ssp | G20: shareser | H20: ='Cover Page'!M25 -> 2019-12-31
A21: UFB-11 Shared Services | B21: =ROW() -> 21 | C21: ='Cover Page'!K6 -> 1346 | D21: ='Cover Page'!K4 -> 2017 | E21: ufb | F21: ssp | G21: shareser | H21: ='Cover Page'!M25 -> 2019-12-31 | S21: Providing
A22: UFB-11 Shared Services | B22: =ROW() -> 22 | C22: ='Cover Page'!K6 -> 1346 | D22: ='Cover Page'!K4 -> 2017 | E22: ufb | F22: ssp | G22: shareser | H22: ='Cover Page'!M25 -> 2019-12-31 | S22: Receiving
A23: UFB-11 Shared Services | B23: =ROW() -> 23 | C23: ='Cover Page'!K6 -> 1346 | D23: ='Cover Page'!K4 -> 2017 | E23: ufb | F23: ssp | G23: shareser | H23: ='Cover Page'!M25 -> 2019-12-31
A24: UFB-11 Shared Services | B24: =ROW() -> 24 | C24: ='Cover Page'!K6 -> 1346 | D24: ='Cover Page'!K4 -> 2017 | E24: ufb | F24: ssp | G24: shareser | H24: ='Cover Page'!M25 -> 2019-12-31
A25: UFB-11 Shared Services | B25: =ROW() -> 25 | C25: ='Cover Page'!K6 -> 1346 | D25: ='Cover Page'!K4 -> 2017 | E25: ufb | F25: ssp | G25: shareser | H25: ='Cover Page'!M25 -> 2019-12-31
A26: UFB-11 Shared Services | B26: =ROW() -> 26 | C26: ='Cover Page'!K6 -> 1346 | D26: ='Cover Page'!K4 -> 2017 | E26: ufb | F26: ssp | G26: shareser | H26: ='Cover Page'!M25 -> 2019-12-31
A27: UFB-11 Shared Services | B27: =ROW() -> 27 | C27: ='Cover Page'!K6 -> 1346 | D27: ='Cover Page'!K4 -> 2017 | E27: ufb | F27: ssp | G27: shareser | H27: ='Cover Page'!M25 -> 2019-12-31
A28: UFB-11 Shared Services | B28: =ROW() -> 28 | C28: ='Cover Page'!K6 -> 1346 | D28: ='Cover Page'!K4 -> 2017 | E28: ufb | F28: ssp | G28: shareser | H28: ='Cover Page'!M25 -> 2019-12-31
A29: UFB-11 Shared Services | B29: =ROW() -> 29 | C29: ='Cover Page'!K6 -> 1346 | D29: ='Cover Page'!K4 -> 2017 | E29: ufb | F29: ssp | G29: shareser | H29: ='Cover Page'!M38 -> 00:00:00
A30: UFB-11 Shared Services | B30: =ROW() -> 30 | C30: ='Cover Page'!K6 -> 1346 | D30: ='Cover Page'!K4 -> 2017 | E30: ufb | F30: ssp | G30: shareser | H30: ='Cover Page'!M38 -> 00:00:00
A31: UFB-11 Shared Services | B31: =ROW() -> 31 | C31: ='Cover Page'!K6 -> 1346 | D31: ='Cover Page'!K4 -> 2017 | E31: ufb | F31: ssp | G31: shareser | H31: ='Cover Page'!M38 -> 00:00:00
A32: UFB-11 Shared Services | B32: =ROW() -> 32 | C32: ='Cover Page'!K6 -> 1346 | D32: ='Cover Page'!K4 -> 2017 | E32: ufb | F32: ssp | G32: shareser | H32: ='Cover Page'!M38 -> 00:00:00
A33: UFB-11 Shared Services | B33: =ROW() -> 33 | C33: ='Cover Page'!K6 -> 1346 | D33: ='Cover Page'!K4 -> 2017 | E33: ufb | F33: ssp | G33: shareser | H33: ='Cover Page'!M38 -> 00:00:00 | S33: Providing
A34: UFB-11 Shared Services | B34: =ROW() -> 34 | C34: ='Cover Page'!K6 -> 1346 | D34: ='Cover Page'!K4 -> 2017 | E34: ufb | F34: ssp | G34: shareser | H34: ='Cover Page'!M38 -> 00:00:00 | S34: Receiving
A35: UFB-11 Shared Services | B35: =ROW() -> 35 | C35: ='Cover Page'!K6 -> 1346 | D35: ='Cover Page'!K4 -> 2017 | E35: ufb | F35: ssp | G35: shareser | H35: ='Cover Page'!M38 -> 00:00:00
A36: UFB-11 Shared Services | B36: =ROW() -> 36 | C36: ='Cover Page'!K6 -> 1346 | D36: ='Cover Page'!K4 -> 2017 | E36: ufb | F36: ssp | G36: shareser | H36: ='Cover Page'!M35 -> 00:00:00
A37: UFB-11 Shared Services | B37: =ROW() -> 37 | C37: ='Cover Page'!K6 -> 1346 | D37: ='Cover Page'!K4 -> 2017 | E37: ufb | F37: ssp | G37: shareser | H37: ='Cover Page'!M35 -> 00:00:00
A38: UFB-11 Shared Services | B38: =ROW() -> 38 | C38: ='Cover Page'!K6 -> 1346 | D38: ='Cover Page'!K4 -> 2017 | E38: ufb | F38: ssp | G38: shareser | H38: ='Cover Page'!M38 -> 00:00:00
J40: Sheet UFB-11

Sheet UFB-12 Auth. & Fire Dist.
A1: =MID(CELL("filename",A2),FIND("]",CELL("filename",A2))+1,256) -> UFB-12 Auth. & Fire Dist. | B1: =ROW() -> 1 | C1: ='Cover Page'!K6 -> 1346 | D1: ='Cover Page'!K4 -> 2017 | E1: ufb | F1: afd | H1: ='Cover Page'!M38 -> 00:00:00 | P1: USER FRIENDLY BUDGET SECTION - LIST OF AUTHORITIES AND FIRE DISTRICTS
A2: =MID(CELL("filename",A2),FIND("]",CELL("filename",A2))+1,256) -> UFB-12 Auth. & Fire Dist. | B2: =ROW() -> 2 | C2: ='Cover Page'!K6 -> 1346 | D2: ='Cover Page'!K4 -> 2017 | E2: ufb | F2: afd | H2: ='Cover Page'!M38 -> 00:00:00
A3: =MID(CELL("filename",A3),FIND("]",CELL("filename",A3))+1,256) -> UFB-12 Auth. & Fire Dist. | B3: =ROW() -> 3 | C3: ='Cover Page'!K6 -> 1346 | D3: ='Cover Page'!K4 -> 2017 | E3: ufb | F3: afd | H3: ='Cover Page'!M38 -> 00:00:00 | K3: Please set forth below the names of all authorities and fire districts that serve your municipality
A4: UFB-12 Auth. & Fire Dist. | B4: =ROW() -> 4 | C4: ='Cover Page'!K6 -> 1346 | D4: ='Cover Page'!K4 -> 2017 | E4: ufb | F4: afd | G4: afd | H4: ='Cover Page'!M38 -> 00:00:00 | K4: NONE
A5: UFB-12 Auth. & Fire Dist. | B5: =ROW() -> 5 | C5: ='Cover Page'!K6 -> 1346 | D5: ='Cover Page'!K4 -> 2017 | E5: ufb | F5: afd | G5: afd | H5: ='Cover Page'!M38 -> 00:00:00
A6: UFB-12 Auth. & Fire Dist. | B6: =ROW() -> 6 | C6: ='Cover Page'!K6 -> 1346 | D6: ='Cover Page'!K4 -> 2017 | E6: ufb | F6: afd | G6: afd | H6: ='Cover Page'!M38 -> 00:00:00
A7: UFB-12 Auth. & Fire Dist. | B7: =ROW() -> 7 | C7: ='Cover Page'!K6 -> 1346 | D7: ='Cover Page'!K4 -> 2017 | E7: ufb | F7: afd | G7: afd | H7: ='Cover Page'!M38 -> 00:00:00
A8: UFB-12 Auth. & Fire Dist. | B8: =ROW() -> 8 | C8: ='Cover Page'!K6 -> 1346 | D8: ='Cover Page'!K4 -> 2017 | E8: ufb | F8: afd | G8: afd | H8: ='Cover Page'!M38 -> 00:00:00
A9: UFB-12 Auth. & Fire Dist. | B9: =ROW() -> 9 | C9: ='Cover Page'!K6 -> 1346 | D9: ='Cover Page'!K4 -> 2017 | E9: ufb | F9: afd | G9: afd | H9: ='Cover Page'!M38 -> 00:00:00
A10: =MID(CELL("filename",A10),FIND("]",CELL("filename",A10))+1,256) -> UFB-12 Auth. & Fire Dist. | B10: =ROW() -> 10 | C10: ='Cover Page'!K6 -> 1346 | D10: ='Cover Page'!K4 -> 2017 | E10: ufb | F10: afd | G10: afd | H10: ='Cover Page'!M38 -> 00:00:00
A11: =MID(CELL("filename",A11),FIND("]",CELL("filename",A11))+1,256) -> UFB-12 Auth. & Fire Dist. | B11: =ROW() -> 11 | C11: ='Cover Page'!K6 -> 1346 | D11: ='Cover Page'!K4 -> 2017 | E11: ufb | F11: afd | G11: afd | H11: ='Cover Page'!M38 -> 00:00:00
A12: =MID(CELL("filename",A12),FIND("]",CELL("filename",A12))+1,256) -> UFB-12 Auth. & Fire Dist. | B12: =ROW() -> 12 | C12: ='Cover Page'!K6 -> 1346 | D12: ='Cover Page'!K4 -> 2017 | E12: ufb | F12: afd | G12: afd | H12: ='Cover Page'!M38 -> 00:00:00
A13: =MID(CELL("filename",A13),FIND("]",CELL("filename",A13))+1,256) -> UFB-12 Auth. & Fire Dist. | B13: =ROW() -> 13 | C13: ='Cover Page'!K6 -> 1346 | D13: ='Cover Page'!K4 -> 2017 | E13: ufb | F13: afd | G13: afd | H13: ='Cover Page'!M38 -> 00:00:00
A14: UFB-12 Auth. & Fire Dist. | B14: =ROW() -> 14 | C14: ='Cover Page'!K6 -> 1346 | D14: ='Cover Page'!K4 -> 2017 | E14: ufb | F14: afd | G14: afd | H14: ='Cover Page'!M38 -> 00:00:00
A15: UFB-12 Auth. & Fire Dist. | B15: =ROW() -> 15 | C15: ='Cover Page'!K6 -> 1346 | D15: ='Cover Page'!K4 -> 2017 | E15: ufb | F15: afd | G15: afd | H15: ='Cover Page'!M38 -> 00:00:00
A16: UFB-12 Auth. & Fire Dist. | B16: =ROW() -> 16 | C16: ='Cover Page'!K6 -> 1346 | D16: ='Cover Page'!K4 -> 2017 | E16: ufb | F16: afd | G16: afd | H16: ='Cover Page'!M38 -> 00:00:00
A17: UFB-12 Auth. & Fire Dist. | B17: =ROW() -> 17 | C17: ='Cover Page'!K6 -> 1346 | D17: ='Cover Page'!K4 -> 2017 | E17: ufb | F17: afd | G17: afd | H17: ='Cover Page'!M38 -> 00:00:00
A18: UFB-12 Auth. & Fire Dist. | B18: =ROW() -> 18 | C18: ='Cover Page'!K6 -> 1346 | D18: ='Cover Page'!K4 -> 2017 | E18: ufb | F18: afd | G18: afd | H18: ='Cover Page'!M38 -> 00:00:00
A19: UFB-12 Auth. & Fire Dist. | B19: =ROW() -> 19 | C19: ='Cover Page'!K6 -> 1346 | D19: ='Cover Page'!K4 -> 2017 | E19: ufb | F19: afd | G19: afd | H19: ='Cover Page'!M38 -> 00:00:00
A20: UFB-12 Auth. & Fire Dist. | B20: =ROW() -> 20 | C20: ='Cover Page'!K6 -> 1346 | D20: ='Cover Page'!K4 -> 2017 | E20: ufb | F20: afd | G20: afd | H20: ='Cover Page'!M38 -> 00:00:00

Sheet muni (hidden)
A1: 0001 Select your Local Government | B1: 0001 | C1: a | D1: a | E1: Atlantic | G1: Introduced
A2: 0100 Atlantic County - County of Atlantic | B2: 0100 | C2: Atlantic | D2: County | E2: Atlantic | G2: Adopted
A3: 0101 Absecon City - County of Atlantic | B3: 0101 | C3: Absecon | D3: City | E3: Atlantic
A4: 0102 Atlantic City City - County of Atlantic | B4: 0102 | C4: Atlantic City | D4: City | E4: Atlantic
A5: 0103 Brigantine City - County of Atlantic | B5: 0103 | C5: Brigantine | D5: City | E5: Atlantic
A6: 0104 Buena Borough - County of Atlantic | B6: 0104 | C6: Buena | D6: Borough | E6: Atlantic
A7: 0105 Buena Vista Township - County of Atlantic | B7: 0105 | C7: Buena Vista | D7: Township | E7: Atlantic
A8: 0106 Corbin City City - County of Atlantic | B8: 0106 | C8: Corbin City | D8: City | E8: Atlantic
A9: 0107 Egg Harbor City - County of Atlantic | B9: 0107 | C9: Egg Harbor | D9: City | E9: Atlantic
A10: 0108 Egg Harbor Township - County of Atlantic | B10: 0108 | C10: Egg Harbor | D10: Township | E10: Atlantic
A11: 0109 Estell Manor City - County of Atlantic | B11: 0109 | C11: Estell Manor | D11: City | E11: Atlantic
A12: 0110 Folsom Borough - County of Atlantic | B12: 0110 | C12: Folsom | D12: Borough | E12: Atlantic
A13: 0111 Galloway Township - County of Atlantic | B13: 0111 | C13: Galloway | D13: Township | E13: Atlantic
A14: 0112 Hamilton Township - County of Atlantic | B14: 0112 | C14: Hamilton | D14: Township | E14: Atlantic
A15: 0113 Hammonton Town - County of Atlantic | B15: 0113 | C15: Hammonton | D15: Town | E15: Atlantic
A16: 0114 Linwood City - County of Atlantic | B16: 0114 | C16: Linwood | D16: City | E16: Atlantic
A17: 0115 Longport Borough - County of Atlantic | B17: 0115 | C17: Longport | D17: Borough | E17: Atlantic
A18: 0116 Margate City - County of Atlantic | B18: 0116 | C18: Margate | D18: City | E18: Atlantic
A19: 0117 Mullica Township - County of Atlantic | B19: 0117 | C19: Mullica | D19: Township | E19: Atlantic
A20: 0118 Northfield City - County of Atlantic | B20: 0118 | C20: Northfield | D20: City | E20: Atlantic
A21: 0119 Pleasantville City - County of Atlantic | B21: 0119 | C21: Pleasantville | D21: City | E21: Atlantic
A22: 0120 Port Republic City - County of Atlantic | B22: 0120 | C22: Port Republic | D22: City | E22: Atlantic
A23: 0121 Somers Point City - County of Atlantic | B23: 0121 | C23: Somers Point | D23: City | E23: Atlantic
A24: 0122 Ventnor City City - County of Atlantic | B24: 0122 | C24: Ventnor City | D24: City | E24: Atlantic
A25: 0123 Weymouth Township - County of Atlantic | B25: 0123 | C25: Weymouth | D25: Township | E25: Atlantic
A26: 0200 Bergen County - County of Bergen | B26: 0200 | C26: Bergen | D26: County | E26: Bergen
A27: 0201 Allendale Borough - County of Bergen | B27: 0201 | C27: Allendale | D27: Borough | E27: Bergen
A28: 0202 Alpine Borough - County of Bergen | B28: 0202 | C28: Alpine | D28: Borough | E28: Bergen
A29: 0203 Bergenfield Borough - County of Bergen | B29: 0203 | C29: Bergenfield | D29: Borough | E29: Bergen
A30: 0204 Bogota Borough - County of Bergen | B30: 0204 | C30: Bogota | D30: Borough | E30: Bergen
A31: 0205 Carlstadt Borough - County of Bergen | B31: 0205 | C31: Carlstadt | D31: Borough | E31: Bergen
A32: 0206 Cliffside Park Borough - County of Bergen | B32: 0206 | C32: Cliffside Park | D32: Borough | E32: Bergen
A33: 0207 Closter Borough - County of Bergen | B33: 0207 | C33: Closter | D33: Borough | E33: Bergen
A34: 0208 Cresskill Borough - County of Bergen | B34: 0208 | C34: Cresskill | D34: Borough | E34: Bergen
A35: 0209 Demarest Borough - County of Bergen | B35: 0209 | C35: Demarest | D35: Borough | E35: Bergen
A36: 0210 Dumont Borough - County of Bergen | B36: 0210 | C36: Dumont | D36: Borough | E36: Bergen
A37: 0211 Elmwood Park Borough - County of Bergen | B37: 0211 | C37: Elmwood Park | D37: Borough | E37: Bergen
A38: 0212 East Rutherford Borough - County of Bergen | B38: 0212 | C38: East Rutherford | D38: Borough | E38: Bergen
A39: 0213 Edgewater Borough - County of Bergen | B39: 0213 | C39: Edgewater | D39: Borough | E39: Bergen
A40: 0214 Emerson Borough - County of Bergen | B40: 0214 | C40: Emerson | D40: Borough | E40: Bergen
A41: 0215 Englewood City - County of Bergen | B41: 0215 | C41: Englewood | D41: City | E41: Bergen
A42: 0216 Englewood Cliffs Borough - County of Bergen | B42: 0216 | C42: Englewood Cliffs | D42: Borough | E42: Bergen
A43: 0217 Fair Lawn Borough - County of Bergen | B43: 0217 | C43: Fair Lawn | D43: Borough | E43: Bergen
A44: 0218 Fairview Borough - County of Bergen | B44: 0218 | C44: Fairview | D44: Borough | E44: Bergen
A45: 0219 Fort Lee Borough - County of Bergen | B45: 0219 | C45: Fort Lee | D45: Borough | E45: Bergen
A46: 0220 Franklin Lakes Borough - County of Bergen | B46: 0220 | C46: Franklin Lakes | D46: Borough | E46: Bergen
A47: 0221 Garfield City - County of Bergen | B47: 0221 | C47: Garfield | D47: City | E47: Bergen
A48: 0222 Glen Rock Borough - County of Bergen | B48: 0222 | C48: Glen Rock | D48: Borough | E48: Bergen
A49: 0223 Hackensack City - County of Bergen | B49: 0223 | C49: Hackensack | D49: City | E49: Bergen
A50: 0224 Harrington Park Borough - County of Bergen | B50: 0224 | C50: Harrington Park | D50: Borough | E50: Bergen
A51: 0225 Hasbrouck Heights Borough - County of Bergen | B51: 0225 | C51: Hasbrouck Heights | D51: Borough | E51: Bergen
A52: 0226 Haworth Borough - County of Bergen | B52: 0226 | C52: Haworth | D52: Borough | E52: Bergen
A53: 0227 Hillsdale Borough - County of Bergen | B53: 0227 | C53: Hillsdale | D53: Borough | E53: Bergen
A54: 0228 Ho-Ho-Kus Borough - County of Bergen | B54: 0228 | C54: Ho-Ho-Kus | D54: Borough | E54: Bergen
A55: 0229 Leonia Borough - County of Bergen | B55: 0229 | C55: Leonia | D55: Borough | E55: Bergen
A56: 0230 Little Ferry Borough - County of Bergen | B56: 0230 | C56: Little Ferry | D56: Borough | E56: Bergen
A57: 0231 Lodi Borough - County of Bergen | B57: 0231 | C57: Lodi | D57: Borough | E57: Bergen
A58: 0232 Lyndhurst Township - County of Bergen | B58: 0232 | C58: Lyndhurst | D58: Township | E58: Bergen
A59: 0233 Mahwah Township - County of Bergen | B59: 0233 | C59: Mahwah | D59: Township | E59: Bergen
A60: 0234 Maywood Borough - County of Bergen | B60: 0234 | C60: Maywood | D60: Borough | E60: Bergen
A61: 0235 Midland Park Borough - County of Bergen | B61: 0235 | C61: Midland Park | D61: Borough | E61: Bergen
A62: 0236 Montvale Borough - County of Bergen | B62: 0236 | C62: Montvale | D62: Borough | E62: Bergen
A63: 0237 Moonachie Borough - County of Bergen | B63: 0237 | C63: Moonachie | D63: Borough | E63: Bergen
A64: 0238 New Milford Borough - County of Bergen | B64: 0238 | C64: New Milford | D64: Borough | E64: Bergen
A65: 0239 North Arlington Borough - County of Bergen | B65: 0239 | C65: North Arlington | D65: Borough | E65: Bergen
A66: 0240 Northvale Borough - County of Bergen | B66: 0240 | C66: Northvale | D66: Borough | E66: Bergen
A67: 0241 Norwood Borough - County of Bergen | B67: 0241 | C67: Norwood | D67: Borough | E67: Bergen
A68: 0242 Oakland Borough - County of Bergen | B68: 0242 | C68: Oakland | D68: Borough | E68: Bergen
A69: 0243 Old Tappan Borough - County of Bergen | B69: 0243 | C69: Old Tappan | D69: Borough | E69: Bergen
A70: 0244 Oradell Borough - County of Bergen | B70: 0244 | C70: Oradell | D70: Borough | E70: Bergen
A71: 0245 Palisades Park Borough - County of Bergen | B71: 0245 | C71: Palisades Park | D71: Borough | E71: Bergen
A72: 0246 Paramus Borough - County of Bergen | B72: 0246 | C72: Paramus | D72: Borough | E72: Bergen
A73: 0247 Park Ridge Borough - County of Bergen | B73: 0247 | C73: Park Ridge | D73: Borough | E73: Bergen
A74: 0248 Ramsey Borough - County of Bergen | B74: 0248 | C74: Ramsey | D74: Borough | E74: Bergen
A75: 0249 Ridgefield Borough - County of Bergen | B75: 0249 | C75: Ridgefield | D75: Borough | E75: Bergen
A76: 0250 Ridgefield Park Village - County of Bergen | B76: 0250 | C76: Ridgefield Park | D76: Village | E76: Bergen
A77: 0251 Ridgewood Village - County of Bergen | B77: 0251 | C77: Ridgewood | D77: Village | E77: Bergen
A78: 0252 River Edge Borough - County of Bergen | B78: 0252 | C78: River Edge | D78: Borough | E78: Bergen
A79: 0253 River Vale Township - County of Bergen | B79: 0253 | C79: River Vale | D79: Township | E79: Bergen
A80: 0254 Rochelle Park Township - County of Bergen | B80: 0254 | C80: Rochelle Park | D80: Township | E80: Bergen
A81: 0255 Rockleigh Borough - County of Bergen | B81: 0255 | C81: Rockleigh | D81: Borough | E81: Bergen
A82: 0256 Rutherford Borough - County of Bergen | B82: 0256 | C82: Rutherford | D82: Borough | E82: Bergen
A83: 0257 Saddle Brook Township - County of Bergen | B83: 0257 | C83: Saddle Brook | D83: Township | E83: Bergen
A84: 0258 Saddle River Borough - County of Bergen | B84: 0258 | C84: Saddle River | D84: Borough | E84: Bergen
A85: 0259 South Hackensack Township - County of Bergen | B85: 0259 | C85: South Hackensack | D85: Township | E85: Bergen
A86: 0260 Teaneck Township - County of Bergen | B86: 0260 | C86: Teaneck | D86: Township | E86: Bergen
A87: 0261 Tenafly Borough - County of Bergen | B87: 0261 | C87: Tenafly | D87: Borough | E87: Bergen
A88: 0262 Teterboro Borough - County of Bergen | B88: 0262 | C88: Teterboro | D88: Borough | E88: Bergen
A89: 0263 Upper Saddle River Borough - County of Bergen | B89: 0263 | C89: Upper Saddle River | D89: Borough | E89: Bergen
A90: 0264 Waldwick Borough - County of Bergen | B90: 0264 | C90: Waldwick | D90: Borough | E90: Bergen
A91: 0265 Wallington Borough - County of Bergen | B91: 0265 | C91: Wallington | D91: Borough | E91: Bergen
A92: 0266 Washington Township - County of Bergen | B92: 0266 | C92: Washington | D92: Township | E92: Bergen
A93: 0267 Westwood Borough - County of Bergen | B93: 0267 | C93: Westwood | D93: Borough | E93: Bergen
A94: 0268 Woodcliff Lake Borough - County of Bergen | B94: 0268 | C94: Woodcliff Lake | D94: Borough | E94: Bergen
A95: 0269 Wood-Ridge Borough - County of Bergen | B95: 0269 | C95: Wood-Ridge | D95: Borough | E95: Bergen
A96: 0270 Wyckoff Township - County of Bergen | B96: 0270 | C96: Wyckoff | D96: Township | E96: Bergen
A97: 0300 Burlington County - County of Burlington | B97: 0300 | C97: Burlington | D97: County | E97: Burlington
A98: 0301 Bass River Township - County of Burlington | B98: 0301 | C98: Bass River | D98: Township | E98: Burlington
A99: 0302 Beverly City - County of Burlington | B99: 0302 | C99: Beverly | D99: City | E99: Burlington
A100: 0303 Bordentown City - County of Burlington | B100: 0303 | C100: Bordentown | D100: City | E100: Burlington
A101: 0304 Bordentown Township - County of Burlington | B101: 0304 | C101: Bordentown | D101: Township | E101: Burlington
A102: 0305 Burlington City - County of Burlington | B102: 0305 | C102: Burlington | D102: City | E102: Burlington
A103: 0306 Burlington Township - County of Burlington | B103: 0306 | C103: Burlington | D103: Township | E103: Burlington
A104: 0307 Chesterfield Township - County of Burlington | B104: 0307 | C104: Chesterfield | D104: Township | E104: Burlington
A105: 0308 Cinnaminson Township - County of Burlington | B105: 0308 | C105: Cinnaminson | D105: Township | E105: Burlington
A106: 0309 Delanco Township - County of Burlington | B106: 0309 | C106: Delanco | D106: Township | E106: Burlington
A107: 0310 Delran Township - County of Burlington | B107: 0310 | C107: Delran | D107: Township | E107: Burlington
A108: 0311 Eastampton Township - County of Burlington | B108: 0311 | C108: Eastampton | D108: Township | E108: Burlington
A109: 0312 Edgewater Park Township - County of Burlington | B109: 0312 | C109: Edgewater Park | D109: Township | E109: Burlington
A110: 0313 Evesham Township - County of Burlington | B110: 0313 | C110: Evesham | D110: Township | E110: Burlington
A111: 0314 Fieldsboro Borough - County of Burlington | B111: 0314 | C111: Fieldsboro | D111: Borough | E111: Burlington
A112: 0315 Florence Township - County of Burlington | B112: 0315 | C112: Florence | D112: Township | E112: Burlington
A113: 0316 Hainesport Township - County of Burlington | B113: 0316 | C113: Hainesport | D113: Township | E113: Burlington
A114: 0317 Lumberton Township - County of Burlington | B114: 0317 | C114: Lumberton | D114: Township | E114: Burlington
A115: 0318 Mansfield Township - County of Burlington | B115: 0318 | C115: Mansfield | D115: Township | E115: Burlington
A116: 0319 Maple Shade Township - County of Burlington | B116: 0319 | C116: Maple Shade | D116: Township | E116: Burlington
A117: 0320 Medford Township - County of Burlington | B117: 0320 | C117: Medford | D117: Township | E117: Burlington
A118: 0321 Medford Lakes Borough - County of Burlington | B118: 0321 | C118: Medford Lakes | D118: Borough | E118: Burlington
A119: 0322 Moorestown Township - County of Burlington | B119: 0322 | C119: Moorestown | D119: Township | E119: Burlington
A120: 0323 Mount Holly Township - County of Burlington | B120: 0323 | C120: Mount Holly | D120: Township | E120: Burlington
A121: 0324 Mount Laurel Township - County of Burlington | B121: 0324 | C121: Mount Laurel | D121: Township | E121: Burlington
A122: 0325 New Hanover Township - County of Burlington | B122: 0325 | C122: New Hanover | D122: Township | E122: Burlington
A123: 0326 North Hanover Township - County of Burlington | B123: 0326 | C123: North Hanover | D123: Township | E123: Burlington
A124: 0327 Palmyra Borough - County of Burlington | B124: 0327 | C124: Palmyra | D124: Borough | E124: Burlington
A125: 0328 Pemberton Borough - County of Burlington | B125: 0328 | C125: Pemberton | D125: Borough | E125: Burlington
A126: 0329 Pemberton Township - County of Burlington | B126: 0329 | C126: Pemberton | D126: Township | E126: Burlington
A127: 0330 Riverside Township - County of Burlington | B127: 0330 | C127: Riverside | D127: Township | E127: Burlington
A128: 0331 Riverton Borough - County of Burlington | B128: 0331 | C128: Riverton | D128: Borough | E128: Burlington
A129: 0332 Shamong Township - County of Burlington | B129: 0332 | C129: Shamong | D129: Township | E129: Burlington
A130: 0333 Southampton Township - County of Burlington | B130: 0333 | C130: Southampton | D130: Township | E130: Burlington
A131: 0334 Springfield Township - County of Burlington | B131: 0334 | C131: Springfield | D131: Township | E131: Burlington
A132: 0335 Tabernacle Township - County of Burlington | B132: 0335 | C132: Tabernacle | D132: Township | E132: Burlington
A133: 0336 Washington Township - County of Burlington | B133: 0336 | C133: Washington | D133: Township | E133: Burlington
A134: 0337 Westampton Township - County of Burlington | B134: 0337 | C134: Westampton | D134: Township | E134: Burlington
A135: 0338 Willingboro Township - County of Burlington | B135: 0338 | C135: Willingboro | D135: Township | E135: Burlington
A136: 0339 Woodland Township - County of Burlington | B136: 0339 | C136: Woodland | D136: Township | E136: Burlington
A137: 0340 Wrightstown Borough - County of Burlington | B137: 0340 | C137: Wrightstown | D137: Borough | E137: Burlington
A138: 0400 Camden County - County of Camden | B138: 0400 | C138: Camden | D138: County | E138: Camden
A139: 0401 Audubon Borough - County of Camden | B139: 0401 | C139: Audubon | D139: Borough | E139: Camden
A140: 0402 Audubon Park Borough - County of Camden | B140: 0402 | C140: Audubon Park | D140: Borough | E140: Camden
A141: 0403 Barrington Borough - County of Camden | B141: 0403 | C141: Barrington | D141: Borough | E141: Camden
A142: 0404 Bellmawr Borough - County of Camden | B142: 0404 | C142: Bellmawr | D142: Borough | E142: Camden
A143: 0405 Berlin Borough - County of Camden | B143: 0405 | C143: Berlin | D143: Borough | E143: Camden
A144: 0406 Berlin Township - County of Camden | B144: 0406 | C144: Berlin | D144: Township | E144: Camden
A145: 0407 Brooklawn Borough - County of Camden | B145: 0407 | C145: Brooklawn | D145: Borough | E145: Camden
A146: 0408 Camden City - County of Camden | B146: 0408 | C146: Camden | D146: City | E146: Camden
A147: 0409 Cherry Hill Township - County of Camden | B147: 0409 | C147: Cherry Hill | D147: Township | E147: Camden
A148: 0410 Chesilhurst Borough - County of Camden | B148: 0410 | C148: Chesilhurst | D148: Borough | E148: Camden
A149: 0411 Clementon Borough - County of Camden | B149: 0411 | C149: Clementon | D149: Borough | E149: Camden
A150: 0412 Collingswood Borough - County of Camden | B150: 0412 | C150: Collingswood | D150: Borough | E150: Camden
A151: 0413 Gibbsboro Borough - County of Camden | B151: 0413 | C151: Gibbsboro | D151: Borough | E151: Camden
A152: 0414 Gloucester City City - County of Camden | B152: 0414 | C152: Gloucester City | D152: City | E152: Camden
A153: 0415 Gloucester Township - County of Camden | B153: 0415 | C153: Gloucester | D153: Township | E153: Camden
A154: 0416 Haddon Township - County of Camden | B154: 0416 | C154: Haddon | D154: Township | E154: Camden
A155: 0417 Haddonfield Borough - County of Camden | B155: 0417 | C155: Haddonfield | D155: Borough | E155: Camden
A156: 0418 Haddon Heights Borough - County of Camden | B156: 0418 | C156: Haddon Heights | D156: Borough | E156: Camden
A157: 0419 Hi-Nella Borough - County of Camden | B157: 0419 | C157: Hi-Nella | D157: Borough | E157: Camden
A158: 0420 Laurel Springs Borough - County of Camden | B158: 0420 | C158: Laurel Springs | D158: Borough | E158: Camden
A159: 0421 Lawnside Borough - County of Camden | B159: 0421 | C159: Lawnside | D159: Borough | E159: Camden
A160: 0422 Lindenwold Borough - County of Camden | B160: 0422 | C160: Lindenwold | D160: Borough | E160: Camden
A161: 0423 Magnolia Borough - County of Camden | B161: 0423 | C161: Magnolia | D161: Borough | E161: Camden
A162: 0424 Merchantville Borough - County of Camden | B162: 0424 | C162: Merchantville | D162: Borough | E162: Camden
A163: 0425 Mount Ephraim Borough - County of Camden | B163: 0425 | C163: Mount Ephraim | D163: Borough | E163: Camden
A164: 0426 Oaklyn Borough - County of Camden | B164: 0426 | C164: Oaklyn | D164: Borough | E164: Camden
A165: 0427 Pennsauken Township - County of Camden | B165: 0427 | C165: Pennsauken | D165: Township | E165: Camden
A166: 0428 Pine Hill Borough - County of Camden | B166: 0428 | C166: Pine Hill | D166: Borough | E166: Camden
A167: 0429 Pine Valley Borough - County of Camden | B167: 0429 | C167: Pine Valley | D167: Borough | E167: Camden
A168: 0430 Runnemede Borough - County of Camden | B168: 0430 | C168: Runnemede | D168: Borough | E168: Camden
A169: 0431 Somerdale Borough - County of Camden | B169: 0431 | C169: Somerdale | D169: Borough | E169: Camden
A170: 0432 Stratford Borough - County of Camden | B170: 0432 | C170: Stratford | D170: Borough | E170: Camden
A171: 0433 Tavistock Borough - County of Camden | B171: 0433 | C171: Tavistock | D171: Borough | E171: Camden
A172: 0434 Voorhees Township - County of Camden | B172: 0434 | C172: Voorhees | D172: Township | E172: Camden
A173: 0435 Waterford Township - County of Camden | B173: 0435 | C173: Waterford | D173: Township | E173: Camden
A174: 0436 Winslow Township - County of Camden | B174: 0436 | C174: Winslow | D174: Township | E174: Camden
A175: 0437 Woodlynne Borough - County of Camden | B175: 0437 | C175: Woodlynne | D175: Borough | E175: Camden
A176: 0500 Cape May County - County of Cape May | B176: 0500 | C176: Cape May | D176: County | E176: Cape May
A177: 0501 Avalon Borough - County of Cape May | B177: 0501 | C177: Avalon | D177: Borough | E177: Cape May
A178: 0502 CAPE MAY City - County of Cape May | B178: 0502 | C178: CAPE MAY | D178: City | E178: Cape May
A179: 0503 Cape May Point Borough - County of Cape May | B179: 0503 | C179: Cape May Point | D179: Borough | E179: Cape May
A180: 0504 Dennis Township - County of Cape May | B180: 0504 | C180: Dennis | D180: Township | E180: Cape May
A181: 0505 Lower Township - County of Cape May | B181: 0505 | C181: Lower | D181: Township | E181: Cape May
A182: 0506 Middle Township - County of Cape May | B182: 0506 | C182: Middle | D182: Township | E182: Cape May
A183: 0507 North Wildwood City - County of Cape May | B183: 0507 | C183: North Wildwood | D183: City | E183: Cape May
A184: 0508 Ocean City City - County of Cape May | B184: 0508 | C184: Ocean City | D184: City | E184: Cape May
A185: 0509 Sea Isle City City - County of Cape May | B185: 0509 | C185: Sea Isle City | D185: City | E185: Cape May
A186: 0510 Stone Harbor Borough - County of Cape May | B186: 0510 | C186: Stone Harbor | D186: Borough | E186: Cape May
A187: 0511 Upper Township - County of Cape May | B187: 0511 | C187: Upper | D187: Township | E187: Cape May
A188: 0512 West Cape May Borough - County of Cape May | B188: 0512 | C188: West Cape May | D188: Borough | E188: Cape May
A189: 0513 West Wildwood Borough - County of Cape May | B189: 0513 | C189: West Wildwood | D189: Borough | E189: Cape May
A190: 0514 Wildwood City - County of Cape May | B190: 0514 | C190: Wildwood | D190: City | E190: Cape May
A191: 0515 Wildwood Crest Borough - County of Cape May | B191: 0515 | C191: Wildwood Crest | D191: Borough | E191: Cape May
A192: 0516 Woodbine Borough - County of Cape May | B192: 0516 | C192: Woodbine | D192: Borough | E192: Cape May
A193: 0600 Cumberland County - County of Cumberland | B193: 0600 | C193: Cumberland | D193: County | E193: Cumberland
A194: 0601 Bridgeton City - County of Cumberland | B194: 0601 | C194: Bridgeton | D194: City | E194: Cumberland
A195: 0602 Commercial Township - County of Cumberland | B195: 0602 | C195: Commercial | D195: Township | E195: Cumberland
A196: 0603 Deerfield Township - County of Cumberland | B196: 0603 | C196: Deerfield | D196: Township | E196: Cumberland
A197: 0604 Downe Township - County of Cumberland | B197: 0604 | C197: Downe | D197: Township | E197: Cumberland
A198: 0605 Fairfield Township - County of Cumberland | B198: 0605 | C198: Fairfield | D198: Township | E198: Cumberland
A199: 0606 Greenwich Township - County of Cumberland | B199: 0606 | C199: Greenwich | D199: Township | E199: Cumberland
A200: 0607 Hopewell Township - County of Cumberland | B200: 0607 | C200: Hopewell | D200: Township | E200: Cumberland
... 387 more rows

Sheet Notes
J1: USER FRIENDLY BUDGET SECTION - Notes
A3: =MID(CELL("filename",A4),FIND("]",CELL("filename",A4))+1,256) -> Notes | B3: =ROW() -> 3 | C3: ='Cover Page'!K6 -> 1346 | D3: ='Cover Page'!K4 -> 2017 | E3: ufb | F3: Notes | H3: ='Cover Page'!M38 -> 00:00:00 | J3: (Press ALT-Enter to go to a new line in each cell)
A4: =MID(CELL("filename",A4),FIND("]",CELL("filename",A4))+1,256) -> Notes | B4: =ROW() -> 4 | C4: ='Cover Page'!K6 -> 1346 | D4: ='Cover Page'!K4 -> 2017 | E4: ufb | F4: Notes | H4: ='Cover Page'!M38 -> 00:00:00
A5: =MID(CELL("filename",A5),FIND("]",CELL("filename",A5))+1,256) -> Notes | B5: =ROW() -> 5 | C5: ='Cover Page'!K6 -> 1346 | D5: ='Cover Page'!K4 -> 2017 | E5: ufb | F5: Notes | H5: ='Cover Page'!M38 -> 00:00:00
A6: =MID(CELL("filename",A6),FIND("]",CELL("filename",A6))+1,256) -> Notes | B6: =ROW() -> 6 | C6: ='Cover Page'!K6 -> 1346 | D6: ='Cover Page'!K4 -> 2017 | E6: ufb | F6: Notes | H6: ='Cover Page'!M38 -> 00:00:00
A7: =MID(CELL("filename",A7),FIND("]",CELL("filename",A7))+1,256) -> Notes | B7: =ROW() -> 7 | C7: ='Cover Page'!K6 -> 1346 | D7: ='Cover Page'!K4 -> 2017 | E7: ufb | F7: Notes | H7: ='Cover Page'!M38 -> 00:00:00
A8: =MID(CELL("filename",A8),FIND("]",CELL("filename",A8))+1,256) -> Notes | B8: =ROW() -> 8 | C8: ='Cover Page'!K6 -> 1346 | D8: ='Cover Page'!K4 -> 2017 | E8: ufb | F8: Notes | H8: ='Cover Page'!M38 -> 00:00:00
